Workbook

Sheet BGS Cost & Bid Factors
B1: ="Development of BGS Cost and Bid Factors for Rates Effective June 1, " &M1 -> Development of BGS Cost and Bid Factors for Rates Effective June 1, 2022 | M1: 2022 | N1: <<< Year of the auction
D3: ="Based on " &M1-1 &" Load Profile Information" -> Based on 2021 Load Profile Information
A4: Table #1 | B4: % Usage During PJM On-Peak Period | D4: On-Peak periods defined as the 16 hr PJM Trading period, adj for NERC holidays | L4: ="'% usage during Off-Peak period (from "&M1-1&" profiles)" -> '% usage during Off-Peak period (from 2021 profiles)
C5: Profile Meter Data | D5: Profile Meter Data | E5: Profile Meter Data | F5: --- Other Analysis --- | H5: Profile Meter Data | L5: Profile Meter Data | M5: Profile Meter Data | N5: Profile Meter Data | O5: -- Other Analysis -- | Q5: Profile Meter Data
C6: SC1 | D6: SC3 | E6: SC2 ND | F6: SC4 | G6: SC6 | H6: SC2 Dem | L6: =+C6 -> SC1 | M6: SC3 | N6: SC2 ND | O6: SC4 | P6: SC6 | Q6: SC2 Dem
B8: January | C8: 0.4158602769 | D8: 0.4525531229 | E8: 0.3284431371 | F8: 0.4939620175 | G8: =F8 -> 0.4939620175 | H8: 0.482932827 | L8: =1-C8 -> 0.5841397231 | M8: 0.5474468771 | N8: 0.6715568629 | O8: 0.5060379825 | P8: 0.5060379825 | Q8: 0.517067173
B9: February | C9: 0.4545923564 | D9: 0.4934795438 | E9: 0.3618006267 | F9: 0.5302488491 | G9: =F9 -> 0.5302488491 | H9: 0.5203253257 | L9: 0.5454076436 | M9: 0.5065204562 | N9: 0.6381993733 | O9: 0.4697511509 | P9: 0.4697511509 | Q9: 0.4796746743
B10: March | C10: 0.47877248 | D10: 0.5127590407 | E10: 0.3679732507 | F10: 0.5517717573 | G10: 0.5517717573 | H10: 0.5431495188 | L10: 0.52122752 | M10: 0.4872409593 | N10: 0.6320267493 | O10: 0.4482282427 | P10: 0.4482282427 | Q10: 0.4568504812
B11: April | C11: 0.4758070573 | D11: 0.5032717894 | E11: 0.3680858522 | F11: 0.5447132427 | G11: 0.5447132427 | H11: 0.5426380353 | L11: 0.5241929427 | M11: 0.4967282106 | N11: 0.6319141478 | O11: 0.4552867573 | P11: 0.4552867573 | Q11: 0.4573619647
B12: May | C12: 0.4204399361 | D12: 0.4549704617 | E12: 0.2926053693 | F12: 0.4896104689 | G12: 0.4896104689 | H12: 0.4918226459 | L12: 0.5795600639 | M12: 0.5450295383 | N12: 0.7073946307 | O12: 0.5103895311 | P12: 0.5103895311 | Q12: 0.5081773541
B13: June | C13: 0.4891456464 | D13: 0.512409533 | E13: 0.3177543378 | F13: 0.5478949918 | G13: 0.5478949918 | H13: 0.5533585267 | L13: 0.5108543536 | M13: 0.487590467 | N13: 0.6822456622 | O13: 0.4521050082 | P13: 0.4521050082 | Q13: 0.4466414733
B14: July | C14: 0.449594761 | D14: 0.48542441 | E14: 0.2862296957 | F14: 0.5079386124 | G14: 0.5079386124 | H14: 0.508322407 | L14: 0.550405239 | M14: 0.51457559 | N14: 0.7137703043 | O14: 0.4920613876 | P14: 0.4920613876 | Q14: 0.491677593
B15: August | C15: 0.493138952 | D15: 0.5068676987 | E15: 0.3097111435 | F15: 0.5351246323 | G15: 0.5351246323 | H15: 0.5400325663 | L15: 0.506861048 | M15: 0.4931323013 | N15: 0.6902888565 | O15: 0.4648753677 | P15: 0.4648753677 | Q15: 0.4599674337
B16: September | C16: 0.4718577238 | D16: 0.4957590748 | E16: 0.350459721 | F16: 0.5317488288 | G16: 0.5317488288 | H16: 0.532617178 | L16: 0.5281422762 | M16: 0.5042409252 | N16: 0.649540279 | O16: 0.4682511712 | P16: 0.4682511712 | Q16: 0.467382822
B17: October | C17: 0.4495210297 | D17: 0.4929010084 | E17: 0.3403930025 | F17: 0.5155904268 | G17: 0.5155904268 | H17: 0.5114572736 | L17: 0.5504789703 | M17: 0.5070989916 | N17: 0.6596069975 | O17: 0.4844095732 | P17: 0.4844095732 | Q17: 0.4885427264
B18: November | C18: 0.4499146314 | D18: 0.505502336 | E18: 0.3579207105 | F18: 0.5270854236 | G18: 0.5270854236 | H18: 0.515921121 | L18: 0.5500853686 | M18: 0.494497664 | N18: 0.6420792895 | O18: 0.4729145764 | P18: 0.4729145764 | Q18: 0.484078879
B19: December | C19: 0.4774865653 | D19: 0.5281965058 | E19: 0.3784929227 | F19: 0.5416924678 | G19: 0.5416924678 | H19: 0.5360608907 | L19: 0.5225134347 | M19: 0.4718034942 | N19: 0.6215070773 | O19: 0.4583075322 | P19: 0.4583075322 | Q19: 0.4639391093
A22: Table #2 | B22: % Usage During RECO On-Peak Billing Period | E22: On-Peak periods as defined in specified rate schedule
C23: N/A | E23: N/A | F23: N/A | G23: N/A | H23: N/A | L23: N/A | M23: =M1-2&" Forecasted Billed Sales" -> 2020 Forecasted Billed Sales | N23: N/A | O23: N/A | P23: N/A | Q23: N/A
B24: (data rounded to nearest %) | C24: =+C6 -> SC1 | D24: =+D6 -> SC3 | E24: SC2 ND | F24: SC4 | G24: SC6 | H24: SC2 Dem | L24: =+C6 -> SC1 | M24: SC3 | N24: SC2 ND | O24: SC4 | P24: SC6 | Q24: SC2 Dem
B26: January | C26: ---- | D26: 0.3259565667 | E26: ---- | F26: ---- | G26: ---- | H26: ---- | M26: =1-D26 -> 0.6740434333
B27: February | C27: ---- | D27: 0.359056806 | E27: ---- | F27: ---- | G27: ---- | H27: ---- | M27: 0.640943194
B28: March | C28: ---- | D28: 0.3360391231 | E28: ---- | F28: ---- | G28: ---- | H28: ---- | M28: 0.6639608769
B29: April | C29: ---- | D29: 0.3477408944 | E29: ---- | F29: ---- | G29: ---- | H29: ---- | M29: 0.6522591056
B30: May | C30: ---- | D30: 0.3597514703 | E30: ---- | F30: ---- | G30: ---- | H30: ---- | M30: 0.6402485297
B31: June | C31: ---- | D31: 0.3948962495 | E31: ---- | F31: ---- | G31: ---- | H31: ---- | M31: 0.6051037505
B32: July | C32: ---- | D32: 0.4169343227 | E32: ---- | F32: ---- | G32: ---- | H32: ---- | M32: 0.5830656773
B33: August | C33: ---- | D33: 0.4289210502 | E33: ---- | F33: ---- | G33: ---- | H33: ---- | M33: 0.5710789498
B34: September | C34: ---- | D34: 0.4181555734 | E34: ---- | F34: ---- | G34: ---- | H34: ---- | M34: 0.5818444266
B35: October | C35: ---- | D35: 0.3996844596 | E35: ---- | F35: ---- | G35: ---- | H35: ---- | M35: 0.6003155404
B36: November | C36: ---- | D36: 0.3756671519 | E36: ---- | F36: ---- | G36: ---- | H36: ---- | M36: 0.6243328481
B37: December | C37: ---- | D37: 0.357551153 | E37: ---- | F37: ---- | G37: ---- | H37: ---- | M37: 0.642448847
A40: Table #3 | B40: Class Usage @ customer | L40: Usage by season
B41: ="Calendar month billed sales forecasted for " &M1 -> Calendar month billed sales forecasted for 2022
B42: in MWh | C42: =+C6 -> SC1 | D42: =+D6 -> SC3 | E42: SC2 ND | F42: SC4 | G42: SC6 | H42: SC2 Dem | I42: Total | L42: =+C6 -> SC1 | M42: SC3 | N42: SC2 ND | O42: SC4 | P42: SC6 | Q42: SC2 Dem
B44: January | C44: 53238.5 | D44: 34 | E44: ='Backup Calcs'!D79 -> 1624 | F44: 665.5 | G44: 480.5 | H44: ='Backup Calcs'!E79 -> 31301.173 | I44: =SUM(C44:H44) -> 87343.673 | K44: winter MWh = | L44: =SUM(C44:C48,C53:C55) -> 362566.5 | M44: 211 | N44: 11255 | O44: 4619 | P44: 3505.5 | Q44: 218005.407
B45: February | C45: 47896 | D45: 33 | E45: ='Backup Calcs'!D80 -> 1786 | F45: 544.5 | G45: 414 | H45: ='Backup Calcs'!E80 -> 25911.248 | I45: 76584.748 | K45: on-peak | M45: =SUMPRODUCT(D26:D30,D44:D48)+SUMPRODUCT(D35:D37,D53:D55) -> 74.99291788
B46: March | C46: 44101.5 | D46: 29 | E46: ='Backup Calcs'!D81 -> 2145 | F46: 582 | G46: 377.5 | H46: ='Backup Calcs'!E81 -> 27071.0285 | I46: 74306.0285 | K46: off-peak | M46: =+M44-M45 -> 136.0070821
B47: April | C47: 39240.5 | D47: 20 | E47: ='Backup Calcs'!D82 -> 1241 | F47: 473.5 | G47: 368.5 | H47: ='Backup Calcs'!E82 -> 28540.045 | I47: 69883.545
B48: May | C48: 38907 | D48: 23 | E48: ='Backup Calcs'!D83 -> 978 | F48: 460 | G48: 340 | H48: ='Backup Calcs'!E83 -> 24732.9905 | I48: 65440.9905 | K48: summer MWh = | L48: =SUM(C49:C52) -> 288272.5 | M48: =+SUM(D49:D52) -> 119 | N48: =+SUM(E49:E52) -> 4156 | O48: =+SUM(F49:F52) -> 1851.5 | P48: =+SUM(G49:G52) -> 1357.5 | Q48: =+SUM(H49:H52) -> 117584.123
B49: June | C49: 54168.5 | D49: 27 | E49: ='Backup Calcs'!D84 -> 947 | F49: 411 | G49: 321 | H49: ='Backup Calcs'!E84 -> 26418.698 | I49: 82293.198 | K49: on-peak | M49: =+SUMPRODUCT(D31:D34,D49:D52) -> 49.4056303
B50: July | C50: 81120.5 | D50: 32 | E50: ='Backup Calcs'!D85 -> 1106 | F50: 440 | G50: 311.5 | H50: ='Backup Calcs'!E85 -> 30114.227 | I50: 113124.227 | K50: off-peak | M50: =+M48-M49 -> 69.5943697
B51: August | C51: 82132 | D51: 29 | E51: ='Backup Calcs'!D86 -> 1097 | F51: 484 | G51: 325.5 | H51: ='Backup Calcs'!E86 -> 31287.1185 | I51: 115354.6185
B52: September | C52: 70851.5 | D52: 31 | E52: ='Backup Calcs'!D87 -> 1006 | F52: 516.5 | G52: 399.5 | H52: ='Backup Calcs'!E87 -> 29764.0795 | I52: 102568.5795 | K52: Block1 | L52: =ROUND(L48*E156,0) -> 123871
B53: October | C53: 48959.5 | D53: 22 | E53: ='Backup Calcs'!D88 -> 1016 | F53: 583.5 | G53: 472.5 | H53: ='Backup Calcs'!E88 -> 27993.328 | I53: 79046.828 | K53: Block2 | L53: =L48-L52 -> 164401.5
B54: November | C54: 41051.5 | D54: 23 | E54: ='Backup Calcs'!D89 -> 975 | F54: 636.5 | G54: 523.5 | H54: ='Backup Calcs'!E89 -> 24926.5115 | I54: 68136.0115 | K54: Block3
B55: December | C55: 49172 | D55: 27 | E55: ='Backup Calcs'!D90 -> 1490 | F55: 673.5 | G55: 529 | H55: ='Backup Calcs'!E90 -> 27529.0825 | I55: 79420.5825
B56: Total | C56: =SUM(C44:C55) -> 650839 | D56: =SUM(D44:D55) -> 330 | E56: 15411 | F56: =SUM(F44:F55) -> 6470.5 | G56: =SUM(G44:G55) -> 4863 | H56: 335589.53 | I56: =SUM(I44:I55) -> 1013503.03
O57: Calculation of TOU Rate Adjustment to Reflect Difference between RECO and PJM Time Periods
A59: Table #4 | B59: Forwards Prices - Energy Only @ bulk system | P59: Tariff Based On-Peak
B60: in $/MWh (See Table 18) | S60: =D6 -> SC3
C61: On-Peak | D61: Off-Peak
B62: January | C62: =G428 -> 67.39 | D62: 53.7 | Q62: winter MWh = | S62: =SUM(D44:D48,D53:D55) -> 211
B63: February | C63: 63.57 | D63: 50.74 | Q63: on-peak | S63: =SUMPRODUCT(D26:D30,D44:D48)+SUMPRODUCT(D35:D37,D53:D55) -> 74.99291788 | T63: =S63/S62 -> 0.3554166724
B64: March | C64: 44.91 | D64: 35.74 | Q64: off-peak | S64: =SUMPRODUCT(M26:M30,D44:D48)+SUMPRODUCT(M35:M37,D53:D55) -> 136.0070821
B65: April | C65: 38.5 | D65: 30.98
B66: May | C66: 37.97 | D66: 30.39 | Q66: summer MWh = | S66: =+SUM(D49:D52) -> 119
B67: June | C67: 41.35 | D67: 27.63 | Q67: on-peak | S67: =+SUMPRODUCT(D31:D34,D49:D52) -> 49.4056303 | T67: =S67/S66 -> 0.4151733638
B68: July | C68: 48.16 | D68: 32.15 | Q68: off-peak | S68: =SUMPRODUCT(M31:M34,D49:D52) -> 69.5943697
B69: August | C69: 45.14 | D69: 30.17
B70: September | C70: 42.33 | D70: 28.19 | P70: PJM based On-Peak kWh
B71: October | C71: 42.53 | D71: 33.17 | S71: =S60 -> SC3
B72: November | C72: 44.64 | D72: 35.01
B73: December | C73: 49.08 | D73: 38.62 | Q73: winter MWh = | S73: =SUM(D44:D48,D53:D55) -> 211
Q74: on-peak | S74: =SUMPRODUCT(D8:D12,D44:D48)+SUMPRODUCT(D17:D19,D53:D55) -> 103.8030813 | T74: =S74/S73 -> 0.4919577312
Q75: off-peak | S75: =SUMPRODUCT(M8:M12,D44:D48)+SUMPRODUCT(M17:M19,D53:D55) -> 107.1969187
A76: Table #5 | B76: Losses | C76: =+C6 -> SC1 | D76: SC3 | E76: SC2 ND | F76: SC4 | G76: SC6 | H76: SC2 Dem
Q77: summer MWh = | S77: =+SUM(D49:D52) -> 119
B78: Expansion Factor = | C78: 1.086313082 | D78: 1.086313082 | E78: 1.086313082 | F78: 1.082530648 | G78: 1.082530648 | H78: 1.086313082 | Q78: on-peak | S78: =+SUMPRODUCT(D13:D16,D49:D52) -> 59.43633309 | T78: =S78/S77 -> 0.499464984
Q79: off-peak | S79: =SUMPRODUCT(M13:M16,D49:D52) -> 59.56366691
B80: Expansion Factor (net
B81: Marginal Losses) | C81: 1.076270251 | D81: 1.076270251 | E81: 1.073465133 | F81: 1.072522785 | G81: 1.06614022 | H81: 1.076270251
A83: Table #6 | B83: Summary of Average BGS Energy Only Unit Costs @ customer - PJM Time Periods | P83: Delta between PJM and Tariff based On-Peak kWh
B84: based on Forwards prices corrected for basis differential & losses | S84: =S60 -> SC3
B85: in $/MWh
C86: =+C6 -> SC1 | D86: SC3 | E86: SC2 ND | F86: SC4 | G86: SC6 | H86: SC2 Dem | Q86: Winter
Q87: On-Peak MWh | S87: =S74-S63 -> 28.8101634
B88: Summer - all hrs | C88: =(SUMPRODUCT(C13:C16,C49:C52,$C67:$C70)*C78+SUMPRODUCT(L13:L16,C49:C52,$D67:$D70)*C78)/SUM(C49:C52) -> 39.96871549 | D88: 40.16160742 | E88: 37.23348423 | F88: 40.39699476 | G88: 40.28981384 | H88: 40.68538669 | Q88: Associated $ | S88: =S87*(D93-D94) -> 313.4228019
B89: PJM on pk | C89: =(SUMPRODUCT(C13:C16,C49:C52,$C67:$C70)*C78)/SUMPRODUCT(C13:C16,C49:C52) -> 48.36788227 | D89: 48.14592157 | E89: 48.06155813 | F89: 47.81823651 | G89: 47.68533848 | H89: 48.1050258 | Q89: Rate Increment/MWh | S89: =ROUND(S88/S73,2) -> 1.49
B90: PJM off pk | C90: =(SUMPRODUCT(L13:L16,C49:C52,$D67:$D70)*C78)/SUMPRODUCT(L13:L16,C49:C52) -> 32.37237413 | D90: 32.19436196 | E90: 32.25049095 | F90: 32.00962306 | G90: 31.91956624 | H90: 32.21618305
Q91: Summer
B92: Winter - all hrs | C92: =(SUMPRODUCT(C8:C12,C44:C48,$C62:$C66)*C78+SUMPRODUCT(L8:L12,C44:C48,$D62:$D66)*C78+SUMPRODUCT(C17:C19,C53:C55,$C71:$C73)*C78+SUMPRODUCT(L17:L19,C53:C55,$D71:$D73)*C78)/SUM(C44:C48,C53:C55) -> 47.6198112 | D92: 48.94352424 | E92: 47.194629 | F92: 48.07347173 | G92: 47.91553829 | H92: 47.83125918 | Q92: On-Peak MWh | S92: =S78-S67 -> 10.0307028
B93: PJM on pk | C93: =(SUMPRODUCT(C8:C12,C44:C48,$C62:$C66)*C78+SUMPRODUCT(C17:C19,C53:C55,$C71:$C73)*C78)/(SUMPRODUCT(C8:C12,C44:C48)+SUMPRODUCT(C17:C19,C53:C55)) -> 53.49764852 | D93: =(SUMPRODUCT(D8:D12,D44:D48,$C62:$C66)*D78+SUMPRODUCT(D17:D19,D53:D55,$C71:$C73)*D78)/(SUMPRODUCT(D8:D12,D44:D48)+SUMPRODUCT(D17:D19,D53:D55)) -> 54.47046378 | E93: =(SUMPRODUCT(E8:E12,E44:E48,$C62:$C66)*E78+SUMPRODUCT(E17:E19,E53:E55,$C71:$C73)*E78)/(SUMPRODUCT(E8:E12,E44:E48)+SUMPRODUCT(E17:E19,E53:E55)) -> 54.41366677 | F93: =(SUMPRODUCT(F8:F12,F44:F48,$C62:$C66)*F78+SUMPRODUCT(F17:F19,F53:F55,$C71:$C73)*F78)/(SUMPRODUCT(F8:F12,F44:F48)+SUMPRODUCT(F17:F19,F53:F55)) -> 53.20762359 | G93: =(SUMPRODUCT(G8:G12,G44:G48,$C62:$C66)*G78+SUMPRODUCT(G17:G19,G53:G55,$C71:$C73)*G78)/(SUMPRODUCT(G8:G12,G44:G48)+SUMPRODUCT(G17:G19,G53:G55)) -> 53.05064231 | H93: =(SUMPRODUCT(H8:H12,H44:H48,$C62:$C66)*H78+SUMPRODUCT(H17:H19,H53:H55,$C71:$C73)*H78)/(SUMPRODUCT(H8:H12,H44:H48)+SUMPRODUCT(H17:H19,H53:H55)) -> 52.94047744 | Q93: Associated $ | S93: =S92*(D89-D90) -> 160.0053535
B94: PJM off pk | C94: =(SUMPRODUCT(L8:L12,C44:C48,$D62:$D66)*C78+SUMPRODUCT(L17:L19,C53:C55,$D71:$D73)*C78)/(SUMPRODUCT(L8:L12,C44:C48)+SUMPRODUCT(L17:L19,C53:C55)) -> 42.76446231 | D94: 43.59156673 | E94: 43.259658 | F94: 42.40913152 | G94: 42.25239028 | H94: 42.34433339 | Q94: Rate Increment/MWh | S94: =ROUND(S93/S77,2) -> 1.34
B96: Annual | C96: =(C88*SUM(C49:C52)+C92*SUM(C44:C48,C53:C55))/C56 -> 44.23095391 | D96: =(D88*SUM(D49:D52)+D92*SUM(D44:D48,D53:D55))/D56 -> 45.77671181 | E96: =(E88*SUM(E49:E52)+E92*SUM(E44:E48,E53:E55))/E56 -> 44.50833235 | F96: =(F88*SUM(F49:F52)+F92*SUM(F44:F48,F53:F55))/F56 -> 45.87688768 | G96: =(G88*SUM(G49:G52)+G92*SUM(G44:G48,G53:G55))/G56 -> 45.78682743 | H96: =(H88*SUM(H49:H52)+H92*SUM(H44:H48,H53:H55))/H56 -> 45.32748277
B98: System Total | C98: =SUMPRODUCT(C96:H96,C56:H56)/SUM(C56:H56) -> 44.61672938
A101: Table #7 | B101: Summary of Average BGS Energy Only Costs @ customer - PJM Time Periods
B102: based on Forwards prices corrected for basis differential & losses
B103: in $1000
C104: =+C6 -> SC1 | D104: SC3 | E104: SC2 ND | F104: SC4 | G104: SC6 | H104: SC2 Dem
B106: Summer - all hrs | C106: =SUM(C49:C52)*C88/1000 -> 11521.88154 | D106: =SUM(D49:D52)*D88/1000 -> 4.779231283 | E106: =SUM(E49:E52)*E88/1000 -> 154.7423605 | F106: =SUM(F49:F52)*F88/1000 -> 74.7950358 | G106: =SUM(G49:G52)*G88/1000 -> 54.69342229 | H106: =SUM(H49:H52)*H88/1000 -> 4783.955513
B107: PJM on pk | C107: =SUMPRODUCT(C49:C52,C13:C16)*C89/1000 -> 6621.657578 | D107: =SUMPRODUCT(D49:D52,D13:D16)*D89/1000 -> 2.861617031 | E107: =SUMPRODUCT(E49:E52,E13:E16)*E89/1000 -> 62.95098102 | F107: =SUMPRODUCT(F49:F52,F13:F16)*F89/1000 -> 46.97311723 | G107: =SUMPRODUCT(G49:G52,G13:G16)*G89/1000 -> 34.36748603 | H107: =SUMPRODUCT(H49:H52,H13:H16)*H89/1000 -> 3015.014774
B108: PJM off pk | C108: =SUMPRODUCT(C49:C52,L13:L16)*C90/1000 -> 4900.223957 | D108: 1.917614252 | E108: 91.79137944 | F108: 27.82191857 | G108: 20.32593625 | H108: 1768.940738
B110: Winter - all hrs | C110: =SUM(C44:C48,C53:C55)*C92/1000 -> 17265.34828 | D110: =SUM(D44:D48,D53:D55)*D92/1000 -> 10.32708361 | E110: =SUM(E44:E48,E53:E55)*E92/1000 -> 531.1755494 | F110: =SUM(F44:F48,F53:F55)*F92/1000 -> 222.0513659 | G110: =SUM(G44:G48,G53:G55)*G92/1000 -> 167.9679195 | H110: =SUM(H44:H48,H53:H55)*H92/1000 -> 10427.47313
B111: PJM on pk | C111: =(SUMPRODUCT(C44:C48,C8:C12)+SUMPRODUCT(C53:C55,C17:C19))*C93/1000 -> 8774.333662 | D111: =(SUMPRODUCT(D44:D48,D8:D12)+SUMPRODUCT(D53:D55,D17:D19))*D93/1000 -> 5.65420198 | E111: =(SUMPRODUCT(E44:E48,E8:E12)+SUMPRODUCT(E53:E55,E17:E19))*E93/1000 -> 216.0548633 | F111: =(SUMPRODUCT(F44:F48,F8:F12)+SUMPRODUCT(F53:F55,F17:F19))*F93/1000 -> 128.9163619 | G111: =(SUMPRODUCT(G44:G48,G8:G12)+SUMPRODUCT(G53:G55,G17:G19))*G93/1000 -> 97.53153755 | H111: =(SUMPRODUCT(H44:H48,H8:H12)+SUMPRODUCT(H53:H55,H17:H19))*H93/1000 -> 5976.35451
B112: PJM off pk | C112: =+(SUMPRODUCT(C44:C48,L8:L12)+SUMPRODUCT(C53:C55,L17:L19))*C94/1000 -> 8491.014613 | D112: 4.672881635 | E112: 315.1206861 | F112: 93.13500404 | G112: 70.43638193 | H112: 4451.118615
B114: Annual | C114: =+C106+C110 -> 28787.22981 | D114: =+D106+D110 -> 15.1063149 | E114: 685.9179098 | F114: 296.8464017 | G114: 222.6613418 | H114: 15211.42864
B116: System Total | C116: =SUM(C114:H114) -> 45219.19042
A119: Table #8 | B119: Summary of Average BGS Energy Only Unit Costs @ customer - RECO Time Periods
B120: based on Forwards prices corrected for basis differential & losses - RECO billing time periods in $/MWh
C122: =+C6 -> SC1 | D122: SC3 | E122: SC2 ND | F122: SC4 | G122: SC6 | H122: SC2 Dem
B124: Summer - all hrs | C124: =+C106/SUM(C49:C52)*1000 -> 39.96871549 | D124: =+D106/SUM(D49:D52)*1000 -> 40.16160742 | E124: =+E106/SUM(E49:E52)*1000 -> 37.23348423 | F124: =+F106/SUM(F49:F52)*1000 -> 40.39699476 | G124: =+G106/SUM(G49:G52)*1000 -> 40.28981384 | H124: =+H106/SUM(H49:H52)*1000 -> 40.68538669
B125: RECO On pk | D125: =D89+S94 -> 49.48592157
B126: RECO Off pk | D126: =D90+S94 -> 33.53436196
B128: Winter - all hrs | C128: =+C110/SUM(C44:C48,C53:C55)*1000 -> 47.6198112 | D128: =+D110/SUM(D44:D48,D53:D55)*1000 -> 48.94352424 | E128: =+E110/SUM(E44:E48,E53:E55)*1000 -> 47.194629 | F128: =+F110/SUM(F44:F48,F53:F55)*1000 -> 48.07347173 | G128: =+G110/SUM(G44:G48,G53:G55)*1000 -> 47.91553829 | H128: =+H110/SUM(H44:H48,H53:H55)*1000 -> 47.83125918
B129: RECO On pk | D129: =D93+S89 -> 55.96046378
B130: RECO Off pk | D130: =D94+S89 -> 45.08156673
B132: Annual Average | C132: =(C124*SUM(C49:C52)+C128*SUM(C44:C48,C53:C55))/C56 -> 44.23095391 | D132: =(D124*SUM(D49:D52)+D128*SUM(D44:D48,D53:D55))/D56 -> 45.77671181 | E132: =(E124*SUM(E49:E52)+E128*SUM(E44:E48,E53:E55))/E56 -> 44.50833235 | F132: =(F124*SUM(F49:F52)+F128*SUM(F44:F48,F53:F55))/F56 -> 45.87688768 | G132: =(G124*SUM(G49:G52)+G128*SUM(G44:G48,G53:G55))/G56 -> 45.78682743 | H132: =(H124*SUM(H49:H52)+H128*SUM(H44:H48,H53:H55))/H56 -> 45.32748277 | L132: 42644
B133: System Average | C133: =+C116/SUM(C56:H56)*1000 -> 44.61672938 | L133: =L136-L132 -> 2434
A135: Table #9 | B135: Generation & Transmission Obligations and Costs and Other Adjustments
B136: ="Obligations - annual average forecasted for " &M1-1 &"; costs are market estimates" -> Obligations - annual average forecasted for 2021; costs are market estimates | L136: =(DATE($M$1+1,6,1)) -> 2023-06-01
B137: in MW | C137: =+C6 -> SC1 | D137: SC3 | E137: SC2 ND | F137: SC4 | G137: SC6 | H137: SC2 Dem | I137: Total FP | L137: =(DATE($M$1,10,1)) -> 2022-10-01
L138: =L136-L137 -> 243
B139: Gen Obl - MW | C139: 295.748 | D139: 0.114 | E139: 2.696 | F139: 0 | G139: 0 | H139: 79.957 | I139: =SUM(C139:H139) -> 378.515 | J139: TRUE
B141: Trans Obl - MW | C141: 311.199 | D141: 0.117 | E141: 2.933 | F141: 0 | G141: 0 | H141: 86.182 | I141: =SUM(C141:H141) -> 400.431 | J141: TRUE
B143: # of Months and Days used in this analysis
D144: # of summer days = | E144: =(DATE($M$1,10,1))-(DATE($M$1,6,1)) -> 122 | G144: # of summer months = | H144: 4
D145: # of winter days = | E145: =(DATE($M$1+1,6,1))-(DATE($M$1,10,1)) -> 243 | G145: # of winter months = | H145: 8
G146: total # months = | H146: =+H144+H145 -> 12
B147: Transmission Cost* | C147: 42548 | D147: per MW-yr | E147: =C147/SUM(E144:E145) -> 116.569863
B149: Generation Capacity cost | C149: summer | D149: =F449 -> 110.02 | E149: $/MW/day | G149: Resulting avg gen cap cost = | H149: summer >> | I149: =+D149*365/1000 -> 40.1573 | J149: per kW/yr
B150: (see Table 19) | C150: winter | D150: =F451 -> 94.7 | E150: $/MW/day | H150: winter >> | I150: =+D150*365/1000 -> 34.5655 | J150: per kW/yr
B152: Current residential summer BGS charges
B153: Current Tariff and % of total summer usage
C154: =" ---------- "&C6&" ----------" -> ---------- SC1 ----------
C155: Charges | E155: % usage
B156: Block 1 (0-600 kWh/month) | C156: 5.407 | D156: ¢/kWh | E156: ='Backup Calcs'!H104 -> 0.4297
B157: Block 2 (>600 kWh/m) | C157: 10.038 | D157: ¢/kWh | E157: ='Backup Calcs'!H105 -> 0.5703
B158: Calculated inversion = | C158: =+C157-C156 -> 4.631 | D158: ¢/kWh
A160: Table #10 | B160: Ancillary Services
B161: forecasted overall annual average | D161: =H461 -> 18.06 | E161: /MWh
A163: Table #11 | B163: Summary of Obligation Costs Expressed as $/MWh @ customer (for non-demand rates only)
C165: =+C6 -> SC1 | D165: =+D6 -> SC3 | E165: =+E6 -> SC2 ND | F165: =+F6 -> SC4 | G165: =+G6 -> SC6
B167: Transmission Obl - all months | C167: =(+$C$147*C141*$H$146/12)/C56 -> 20.34434791 | D167: =(+$C$147*D141*$H$146/12)/D56 -> 15.0852 | E167: =(+$C$147*E141*$H$146/12)/E56 -> 8.097675946 | F167: =(+$C$147*F141*$H$146/12)/F56 -> 0 | G167: =(+$C$147*G141*$H$146/12)/G56 -> 0
B169: Generation Obl -
B170: per annual MWh | C170: =((+$D$149*$E$144*C139)+($D$150*$E$145*C139))/C56 -> 16.55623332 | D170: =((+$D$149*$E$144*D139)+($D$150*$E$145*D139))/D56 -> 12.58647745 | E170: =((+$D$149*$E$144*E139)+($D$150*$E$145*E139))/E56 -> 6.373857624 | F170: =((+$D$149*$E$144*F139)+($D$150*$E$145*F139))/F56 -> 0 | G170: =((+$D$149*$E$144*G139)+($D$150*$E$145*G139))/G56 -> 0
B171: per summer MWh | C171: =C$139*$D149*$E144/SUM(C$49:C$52) -> 13.77051153 | D171: =D$139*$D149*$E144/SUM(D$49:D$52) -> 12.85847193 | E171: =E$139*$D149*$E144/SUM(E$49:E$52) -> 8.707145871 | F171: =F$139*$D149*$E144/SUM(F$49:F$52) -> 0 | G171: =G$139*$D149*$E144/SUM(G$49:G$52) -> 0
B172: per winter MWh | C172: =C$139*$D150*$E145/(SUM(C$44:C$48)+SUM(C$53:C$55)) -> 18.77112902 | D172: =D$139*$D150*$E145/(SUM(D$44:D$48)+SUM(D$53:D$55)) -> 12.43307773 | E172: =E$139*$D150*$E145/(SUM(E$44:E$48)+SUM(E$53:E$55)) -> 5.512272021 | F172: =F$139*$D150*$E145/(SUM(F$44:F$48)+SUM(F$53:F$55)) -> 0 | G172: =G$139*$D150*$E145/(SUM(G$44:G$48)+SUM(G$53:G$55)) -> 0
A175: Table #12 | B175: Summary of BGS Unit Costs @ customer
B177: NON-DEMAND RATES (includes energy, G&T obligations, and Ancillary Services - adjusted to billing time periods in $/MWh)
C179: =+C6 -> SC1 | D179: =+D6 -> SC3 | E179: =+E6 -> SC2 ND | F179: =+F6 -> SC4 | G179: =+G6 -> SC6
B181: Summer - all hrs | C181: =+C124+$D$161+C$167+C171 -> 92.14357493 | D181: =+D124+$D$161+D$167+D171 -> 86.16527936 | E181: =+E124+$D$161+E$167+E171 -> 72.09830604 | F181: =+F124+$D$161+F$167+F171 -> 58.45699476 | G181: =+G124+$D$161+G$167+G171 -> 58.34981384
B182: RECO On pk | D182: =+D125+$D$161+D$167+(D171*M48/M49) -> 113.6024532
B183: RECO Off pk | D183: =+D126+$D$161+D$167 -> 66.67956196
B184: Block 1 | C184: =(C181*SUM(C49:C52)-C158*10*E157*SUM(C49:C52))/SUM(C49:C52) -> 65.73298193
B185: Block 2 | C185: =C184+C158*10 -> 112.0429819
B188: Winter - all hrs | C188: =+C128+$D$161+C$167+C172 -> 104.7952881 | D188: =+D128+$D$161+D$167+D172 -> 94.52180197 | E188: =+E128+$D$161+E$167+E172 -> 78.86457697 | F188: =+F128+$D$161+F$167+F172 -> 66.13347173 | G188: =+G128+$D$161+G$167+G172 -> 65.97553829
B189: RECO On pk | D189: =+D129+$D$161+D$167+(D172*M44/M45) -> 124.087359
B190: RECO Off pk | D190: =+D130+$D$161+D$167 -> 78.22676673
B192: Annual -all hrs | C192: =+C132+$D$161+C$167+C170 -> 99.19153514 | D192: =+D132+$D$161+D$167+D170 -> 91.50838927 | E192: =+E132+$D$161+E$167+E170 -> 77.03986592 | F192: =+F132+$D$161+F$167+F170 -> 63.93688768 | G192: =+G132+$D$161+G$167+G170 -> 63.84682743
B194: DEMAND RATES (includes energy and Ancillary Services, G&T obligations charged separately - adjusted to billing time periods in $/MWh)
C196: =+H6 -> SC2 Dem | F196: PLUS:
B198: Summer - all hrs | C198: =+H124+$D$161 -> 58.74538669 | F198: Gen Cost (per kW of Billed Demand/Month)
H200: < 5 kW | I200: > 5 kW
B202: Winter - all hrs | C202: =+H128+$D$161 -> 65.89125918 | F202: summer | H202: =H213 -> 0.801 | I202: =I213 -> 2.952
F203: winter | H203: =H214 -> 1.034 | I203: =I214 -> 2.682
F205: Trans cost
B206: Annual - all hrs per MWh only | C206: =+H132+$D$161 -> 63.38748277 | F206: all months | G206: =+C147/1000/12 -> 3.545666667 | H206: per kW of T obl /month
A207: Table #12 | B207: (Continued) | K207: PLUS:
B209: Including T&G Obligation $ | F209: Gen Cost (per kW of Billed Demand/Month) | K209: Gen Cost (per kW of Billed Demand/Month)
B210: Summer - all hrs | C210: =(C198*Q48+($H213*($M$223/4*H144))+($I213*($M$223/4*H144))+($G206*$H144*H141*1000))/Q48 -> 80.09820315 | T210: $ / kW | Z210: Round | AA210: 3
L211: =H6 -> SC2 Dem | M211: 1st 5 kW | N211: > 5 kW | P211: Summer Revenue | Q211: 1st 5 kW | R211: > 5 kW | S211: Total kW | T211: < 5 kW Charge | U211: > 5 kW Charge | V211: Differential | W211: Reduce Differential By: | X211: 0.33
H212: < 5 kW | I212: > 5 kW
F213: summer | H213: =M213 -> 0.801 | I213: =N213 -> 2.952 | K213: summer | L213: =ROUND(H139*D149*E144/$M$223,3) -> 3.126 | M213: =ROUND((P213-V213*(1-$X$211)*R213)/S213,$AA$210) -> 0.801 | N213: =ROUND(M213+V213*(1-$X$211),$AA$210) -> 2.952 | P213: =H139*D149*E144 -> 1073218.035 | Q213: =$M$229 -> 74540.73711 | R213: =$M$223 -> 343315.1129 | S213: =Q213+R213 -> 417855.85 | T213: 1.96 | U213: 5.17 | V213: =U213-T213 -> 3.21 | Z213: =M213*Q213+N213*R213 -> 1073173.344 | AA213: =P213-Z213 -> 44.69139784
B214: Winter - all hrs | C214: =(C202*Q44+($H214*($M$224/8*H145))+($I214*($M$224/8*H145))+($G206*$H145*H141*1000))/Q44 -> 87.73004829 | F214: winter | H214: =M214 -> 1.034 | I214: =N214 -> 2.682 | K214: winter | L214: =ROUND(H139*D150*E145/$M$224,3) -> 2.952 | M214: =ROUND((P214-V214*(1-$X$211)*R214)/S214,$AA$210) -> 1.034 | N214: =ROUND(M214+V214*(1-$X$211),$AA$210) -> 2.682 | P214: =H139*D150*E145 -> 1839978.48 | Q214: =$M$230 -> 162294.297 | R214: =$M$224 -> 623356.553 | S214: =Q214+R214 -> 785650.85 | T214: 2.32 | U214: 4.78 | V214: =U214-T214 -> 2.46
K216: Trans cost
K217: all months | L217: =+C147/1000/12 -> 3.545666667 | M217: per kW of T obl /month | P217: =P213+P214 -> 2913196.515
B218: Annual - including T&G Obl $ | C218: =(C206*H56+($H213*($M$229/4*H144)+$H214*($M$230/8*H145)+$I213*($M$223/4*H144)+$I214*($M$224/8*H145))+($G206*$H146*H141*1000))/H56 -> 82.99387412
B220: ALL RATES
B221: Grand Total Cost in $1000 = | C221: =(+SUMPRODUCT(C192:G192,C56:G56)+SUMPRODUCT(C218,H56))/1000 -> 94351.24464 | L221: SC2 Sales and Demands
C222: All-In Average cost @ customer = | D222: =+C221/SUM(C56:H56)*1000 -> 93.09419099 | E222: per MWh at customer (per customer metered MWh) | M222: Over 5 kW
C223: All-In Average costs @ transmission nodes = | D223: =+C221/SUMPRODUCT(C56:H56,C81:H81)*1000 -> 86.50629808 | E223: per MWH at transmission nodes (per metered MWh at transmission node) | L223: Summer | M223: ='Backup Calcs'!$I$95 -> 343315.1129
L224: Winter | M224: ='Backup Calcs'!$I$96 -> 623356.553
A226: Table #13 | B226: Ratio of BGS Unit Costs @ customer to All-In Average Cost @ transmission nodes
L227: SC2 Sales and Demands
B228: NON-DEMAND RATES | M228: First 5 kW
B229: Includes energy, G&T obligations, and Ancillary Services - adjusted to billing time periods | L229: Summer | M229: ='Backup Calcs'!$H$95 -> 74540.73711
L230: Winter | M230: ='Backup Calcs'!$H$96 -> 162294.297
C231: =+C6 -> SC1 | D231: =+D6 -> SC3 | E231: =+E6 -> SC2 ND | F231: =+F6 -> SC4 | G231: =+G6 -> SC6
B233: Summer - all hrs | C233: =ROUND(+C181/$D$223,3) -> 1.065 | E233: =ROUND(+E181/$D$223,3) -> 0.833 | F233: =ROUND(+F181/$D$223,3) -> 0.676 | G233: =ROUND(+G181/$D$223,3) -> 0.675
B234: RECO On pk | D234: =ROUND(+D182/$D$223,3) -> 1.313
B235: RECO Off pk | D235: =ROUND(+D183/$D$223,3) -> 0.771
B238: Constant Blk 1 | C238: =C184-C181 -> -26.410593
B239: Constant Blk 2 | C239: =C185-C181 -> 19.899407
B242: Winter - all hrs | C242: =ROUND(+C188/$D$223,3) -> 1.211 | E242: =ROUND(+E188/$D$223,3) -> 0.912 | F242: =ROUND(+F188/$D$223,3) -> 0.764 | G242: =ROUND(+G188/$D$223,3) -> 0.763
B243: RECO On pk | D243: =ROUND(+D189/$D$223,3) -> 1.434
B244: RECO Off pk | D244: =ROUND(+D190/$D$223,3) -> 0.904
B246: Annual - all hrs | C246: =ROUND(+C192/$D$223,3) -> 1.147 | D246: =ROUND(+D192/$D$223,3) -> 1.058 | E246: =ROUND(+E192/$D$223,3) -> 0.891 | F246: =ROUND(+F192/$D$223,3) -> 0.739 | G246: =ROUND(+G192/$D$223,3) -> 0.738
A248: Table #13 | B248: (Continued)
B250: DEMAND RATES
B251: Includes energy and Ancillary Services, G&T obligations charged separately - adjusted to billing time periods
C253: =+H6 -> SC2 Dem | D253: =+C253 -> SC2 Dem | G253: PLUS:
C254: Multiplier | D254: Constant
B255: Summer - all hrs | C255: =ROUND(+C210/$D$223,3) -> 0.926 | D255: =+C198-C210 -> -21.35281646 | G255: Gen Cost (per kW of Billed Demand/Month)
I257: < 5 kW | J257: > 5 kW
B259: Winter - all hrs | C259: =ROUND(+C214/$D$223,3) -> 1.014 | D259: =+C202-C214 -> -21.83878911 | G259: summer | I259: =M213 -> 0.801 | J259: =N213 -> 2.952
G260: winter | I260: =M214 -> 1.034 | J260: =N214 -> 2.682
G262: Trans cost
B263: Annual - including T&G Obl $ | C263: =ROUND(+C218/$D$223,3) -> 0.959 | G263: all months | H263: =+G206 -> 3.545666667 | I263: per kW of T obl /month
A266: Table #14 | B266: Summary of BGS Unit Costs Less Transmission @ customer
... 249 more rows

Sheet Weighted Avg Price Calc
A1: ROCKLAND ELECTRIC COMPANY
A2: ='BGS Cost & Bid Factors'!M1&" BGS Auction" -> 2022 BGS Auction
A4: Table A | B4: Weighted Average Price Calculation
D6: =F6-2 -> 2020 | E6: =F6-1 -> 2021 | F6: 2022
D7: Auction | E7: Auction | F7: Auction
B8: Line # | C8: Specific BGS-FP Auction >> | D8: 36 Month | E8: 36 Month | F8: 36 Month | G8: Total | I8: Notes:
B9: 1 | C9: Tranches | D9: 2 | E9: 1 | F9: 1 | G9: =SUM(D9:F9) -> 4 | I9: From then-current auction
B10: 2(a) | C10: Winning Bid Price (¢/kWh)* | D10: 8.242 | E10: 6.692 | F10: 6.692 | I10: ="(Note: "&F6&" Auction Price Shown for Illustrative Purposes Only)" -> (Note: 2022 Auction Price Shown for Illustrative Purposes Only)
B11: 2(b) | C11: Capacity Proxy Price True-up - in (¢/kWh)* | D11: -0.734 | E11: -0.734 | F11: 0 | I11: Entered After 2022 BGS Auction
B12: 2(C) | C12: Winning Bid Price (¢/kWh)* | D12: =D11+D10 -> 7.508 | E12: =E11+E10 -> 5.958 | F12: 6.692 | I12: = 2(a) + 2(b)
B13: 3 | C13: Transmission (¢/kWh) | D13: 1.327 | E13: 0 | F13: 0 | I13: Average transmission cost included in bid for existing tranches only
B14: 4 | C14: BGS (¢/kWh) | D14: =D12-D13 -> 6.181 | E14: =E12-E13 -> 5.958 | F14: 6.692 | I14: =(2) - (3)
B15: 5 | C15: Weighted Avg BGS | D15: =D9/$G$9*D14 -> 3.0905 | E15: =E9/$G$9*E14 -> 1.4895 | F15: =F9/$G$9*F14 -> 1.673 | G15: =SUM(D15:F15) -> 6.253 | I15: = (1) / Total Tranches * (4)
B16: 6 | C16: Weighted Avg Trans | D16: =D9/$G$9*D13 -> 0.6635 | E16: =E9/$G$9*E13 -> 0 | F16: =F9/$G$9*F13 -> 0 | G16: =SUM(D16:F16) -> 0.6635 | I16: = (1) / Total Tranches * (3)
B17: 7 | C17: Weighted Avg Total Price (¢/kWh) | G17: =G15+G16 -> 6.9165
C19: Seasonal Payment Factors
B20: 8 | C20: Summer | D20: 1 | E20: 1 | F20: =IF('BGS Cost & Bid Factors'!J377<1,1,'BGS Cost & Bid Factors'!J377) -> 1 | G20: ** | I20: From then-current Bid Factor Spreadsheet
B21: 9 | C21: Winter | D21: 1 | E21: 1 | F21: =IF('BGS Cost & Bid Factors'!J378>1,1,'BGS Cost & Bid Factors'!J378) -> 1 | G21: ** | I21: From then-current Bid Factor Spreadsheet
C23: Applicable Customer Usage @ transmission nodes | F23: (Eastern Division)
B24: 10 | C24: Summer MWh | D24: ='Rate Calculations'!$D$251 -> 386727.4406 | I24: From then-current Bid Factor Spreadsheet
B25: 11 | C25: Winter MWh | D25: ='Rate Calculations'!$D$252 -> 561490.0023 | I25: From then-current Bid Factor Spreadsheet
B26: 12 | D26: =SUM(D24:D25) -> 948217.4429
C28: Total Cost
B29: 13 | C29: Summer | D29: =ROUND(D$9/$G$9*(D$12-D$13)/100*D$20*$D$24*1000,0) -> 11951812 | E29: =ROUND(E$9/$G$9*(E$12-E$13)/100*E$20*$D$24*1000,0) -> 5760305 | F29: =ROUND(F$9/$G$9*(F$12-F$13)/100*F$20*$D$24*1000,0) -> 6469950 | G29: =SUM(D29:F29) -> 24182067 | I29: = (1) / Total Tranches * (2C - 3) / 100 * (8) * (10) * 1,000
B30: 14 | C30: Winter | D30: =ROUND(D$9/$G$9*(D$12-D$13)/100*D$21*$D$25*1000,0) -> 17352849 | E30: =ROUND(E$9/$G$9*(E$12-E$13)/100*E$21*$D$25*1000,0) -> 8363394 | F30: =ROUND(F$9/$G$9*(F$12-F$13)/100*F$21*$D$25*1000,0) -> 9393728 | G30: =SUM(D30:F30) -> 35109971 | I30: = (1) / Total Tranches * (2C - 3) / 100 * (9) * (11) * 1,000
B31: 15 | C31: Total | D31: =SUM(D29:D30) -> 29304661 | E31: =SUM(E29:E30) -> 14123699 | F31: =SUM(F29:F30) -> 15863678 | G31: =SUM(G29:G30) -> 59292038 | I31: = (13) + (14)
C33: Average Cost (NJ Statewide Auction)
B34: 16 | C34: Summer | D34: =ROUND(G29/D24/1000*100,3) -> 6.253 | E34: ¢/kWh | I34: = sum(line 13) / (10) / 1000 * 100 rounded to 3 decimal places
B35: 17 | C35: Winter | D35: =ROUND(G30/D25/1000*100,3) -> 6.253 | E35: ¢/kWh | I35: = sum(line 14) / (11) / 1000 * 100 rounded to 3 decimal places
B36: 18 | C36: Total | D36: =ROUND(G31/D26/1000*100,3) -> 6.253 | E36: ¢/kWh | I36: = sum(line 15) / (12) / 1000 * 100 rounded to 3 decimal places
C38: Average Cost (Including RECO RFP)
D39: BGS | E39: RECO
D40: Auction | E40: RFP | G40: Total
B41: 19 | C41: Tranches | D41: =SUM(D9:F9) -> 4 | E41: ='BGS Cost & Bid Factors'!M466 -> 0.601 | G41: =SUM(D41:E41) -> 4.601 | I41: Includes RECO RFP equivalent tranches
B42: 20 | C42: Price ¢/kWh | D42: =D36 -> 6.253 | E42: ='Rate Calculations'!$D$286*(100/1000) -> 6.59 | I42: ="BGS Auction from (18)" -> BGS Auction from (18) | K42: ="Note "&$E$42&"¢ for RFP is illustrative" -> Note 6.59¢ for RFP is illustrative
I43: (excludes transmission).
B44: 21 | C44: Transmission | D44: =F13 -> 0 | E44: 0
B45: 22 | C45: BGS | D45: =D42-D44 -> 6.253 | E45: =E42-E44 -> 6.59 | I45: = (20) - (21)
B46: 23 | C46: Weighted Avg BGS | D46: =D41/$G$41*D45 -> 5.43620952 | E46: =E41/$G$41*E45 -> 0.8608106933 | G46: =SUM(D46:E46) -> 6.297020213 | I46: = (19) / Total Tranches * (22)
B47: 24 | C47: Weighted Avg Trans | D47: =D41/$G$41*D44 -> 0 | E47: =E41/$G$41*E44 -> 0 | G47: =SUM(D47:E47) -> 0 | I47: = (19) / Total Tranches * (21)
B48: 25 | C48: Weighted Avg Total Price | G48: =ROUND(G46+G47,3) -> 6.297 | I48: = (23) + (24)
C50: * Includes Impact of PJM Marginal Losses
C51: ** Auction results set to 1.0 to avoid using an atypical result from the current 12-month forward prices.

Sheet Rate Calculations
A1: ROCKLAND ELECTRIC COMPANY
A2: ='BGS Cost & Bid Factors'!M1 &" BGS Auction" -> 2022 BGS Auction
A6: Table B | B6: Ratio of BGS Unit Costs Less Transmission @ customer to All-In Average Cost @ transmission nodes
B7: (from Table 15 of Bid Factor Spreadsheet)
B9: NON-DEMAND RATES
B10: includes energy, G&T obligations, and Ancillary Services - adjusted to billing time periods
C12: ='BGS Cost & Bid Factors'!C$6 -> SC1 | D12: ='BGS Cost & Bid Factors'!D$6 -> SC3 | E12: ='BGS Cost & Bid Factors'!E$6 -> SC2 ND | F12: ='BGS Cost & Bid Factors'!F$6 -> SC4 | G12: ='BGS Cost & Bid Factors'!G$6 -> SC6
B14: Summer - all hrs | C14: ='BGS Cost & Bid Factors'!C327 -> 1.004 | E14: ='BGS Cost & Bid Factors'!E327 -> 0.895 | F14: ='BGS Cost & Bid Factors'!F327 -> 0.817 | G14: ='BGS Cost & Bid Factors'!G327 -> 0.816
B15: RECO On pk | D15: ='BGS Cost & Bid Factors'!D328 -> 1.377
B16: RECO Off pk | D16: ='BGS Cost & Bid Factors'!D329 -> 0.721
B19: Constant Blk 1 | C19: ='BGS Cost & Bid Factors'!C332 -> -26.410593
B20: Constant Blk 2 | C20: ='BGS Cost & Bid Factors'!C333 -> 19.899407
B23: Winter - all hrs | C23: ='BGS Cost & Bid Factors'!C336 -> 1.181 | E23: ='BGS Cost & Bid Factors'!E336 -> 0.989 | F23: ='BGS Cost & Bid Factors'!F336 -> 0.925 | G23: ='BGS Cost & Bid Factors'!G336 -> 0.922
B24: RECO On pk | D24: ='BGS Cost & Bid Factors'!D337 -> 1.524
B25: RECO Off pk | D25: ='BGS Cost & Bid Factors'!D338 -> 0.883
B27: Annual - all hrs | C27: ='BGS Cost & Bid Factors'!C340 -> 1.102 | D27: ='BGS Cost & Bid Factors'!D340 -> 1.069 | E27: ='BGS Cost & Bid Factors'!E340 -> 0.9639587687 | F27: ='BGS Cost & Bid Factors'!F340 -> 0.894 | G27: ='BGS Cost & Bid Factors'!G340 -> 0.893
B30: DEMAND RATES
B31: includes energy and Ancillary Services, G&T obligations charged separately - adjusted to billing time periods
C33: ='BGS Cost & Bid Factors'!H6 -> SC2 Dem | D33: =+C33 -> SC2 Dem | G33: PLUS:
C34: Multiplier | D34: Constant
B35: Summer - all hrs | C35: ='BGS Cost & Bid Factors'!C348 -> 0.975 | D35: ='BGS Cost & Bid Factors'!D348 -> -10.95778568 | G35: Gen Cost (per kW of Billed Demand/Month)
H37: ='BGS Cost & Bid Factors'!G212 -> 0 | I37: ='BGS Cost & Bid Factors'!H212 -> < 5 kW | J37: ='BGS Cost & Bid Factors'!I212 -> > 5 kW
B39: Winter - all hrs | C39: ='BGS Cost & Bid Factors'!C352 -> 1.07 | D39: ='BGS Cost & Bid Factors'!D352 -> -10.6253922 | G39: summer | H39: ='BGS Cost & Bid Factors'!H352 -> 0 | I39: ='BGS Cost & Bid Factors'!I352 -> 0.801 | J39: ='BGS Cost & Bid Factors'!J352 -> 2.952
G40: winter | H40: ='BGS Cost & Bid Factors'!H353 -> 0 | I40: ='BGS Cost & Bid Factors'!I353 -> 1.034 | J40: ='BGS Cost & Bid Factors'!J353 -> 2.682
B43: Annual - including T&G Obl $ | C43: ='BGS Cost & Bid Factors'!C356 -> 1.036
A46: Table C | B46: Determination of Preliminary Retail Rates to be Charged to BGS Customers
B48: All-In Average costs @ Trans node = | D48: ='Weighted Avg Price Calc'!G48*10 -> 62.97 | E48: /MWh* | F48: * Price from Table A (which does not include | K48: RECO RFP MW | L48: ='BGS Cost & Bid Factors'!M464 -> 54.72
B49: Less Transmission | D49: 0 | E49: /MWh** | F49: transmission for the Central/Western Division). | K49: Tranch MW | L49: ='BGS Cost & Bid Factors'!M465 -> 91.0725
B50: BGS Cost | D50: =D48+D49 -> 62.97 | E50: /MWh | F50: ="** RECO average transmission rate of "&TEXT(L52,"0.00")&" minus" -> ** RECO average transmission rate of 14.99 minus | K50: RFP % | L50: =ROUND(L48/L49,3) -> 0.601
F51: Central/West transmission contribution to weighted
F52: ="average rate "&TEXT(L50,"0.000")&"/"&TEXT(4+L50,"0.000")&" *$"&TEXT(L52,"0.00")&" per MWh)." -> average rate 0.601/4.601 *$14.99 per MWh). | I52: =ROUND(L50/(4+L50)*L52,2) -> 1.96 | K52: RECO Avg.x'mission | L52: ='BGS Cost & Bid Factors'!D223-'BGS Cost & Bid Factors'!D318 -> 14.98644452 | M52: $/MWh
B53: Retail BGS Rates (excl SUT) (¢/kWh) | K53: Cen/West x'mission cont | L53: =I52 -> 1.96 | M53: $/MWh
K54: Actual RECO x'mission | L54: =L52-L53 -> 13.02644452 | M54: $/MWh
C55: ='BGS Cost & Bid Factors'!C$6 -> SC1 | D55: ='BGS Cost & Bid Factors'!D$6 -> SC3 | E55: ='BGS Cost & Bid Factors'!E$6 -> SC2 ND | F55: ='BGS Cost & Bid Factors'!F$6 -> SC4 | G55: ='BGS Cost & Bid Factors'!G$6 -> SC6 | H55: ='BGS Cost & Bid Factors'!H$6 -> SC2 Dem
B56: Summer
B57: All kWh (¢/kWh) | C57: =ROUND(($D$50*C14)/10,3) -> 6.322 | E57: =ROUND(E14*$D$50/10,3) -> 5.636 | F57: =ROUND(F14*$D$50/10,3) -> 5.145 | G57: =ROUND(G14*$D$50/10,3) -> 5.138 | H57: =ROUND((C35*$D$50+D35)/10,3) -> 5.044
B58: Peak kWh (¢/kWh) | D58: =ROUND(D15*$D$50/10,3) -> 8.671
B59: Off-Peak kWh (¢/kWh) | D59: =ROUND(D16*$D$50/10,3) -> 4.54
B60: Block1 | C60: =ROUND(($D$50*C14+C19)/10,3) -> 3.681
B61: Block2 | C61: =ROUND(($D$50*C14+C20)/10,3) -> 8.312
B64: Demand Charge ($/kW) 1st 5kW | H64: ='BGS Cost & Bid Factors'!H213 -> 0.801
B65: Demand Charge ($/kW)> 5 kW | H65: ='BGS Cost & Bid Factors'!I213 -> 2.952
B67: Winter
B68: All kWh (¢/kWh) | C68: =ROUND(C23*$D$50/10,3) -> 7.437 | E68: =ROUND(E23*$D$50/10,3) -> 6.228 | F68: =ROUND(F23*$D$50/10,3) -> 5.825 | G68: =ROUND(G23*$D$50/10,3) -> 5.806 | H68: =ROUND((C39*$D$50+D39)/10,3) -> 5.675
B69: Peak kWh (¢/kWh) | D69: =ROUND(D24*$D$50/10,3) -> 9.597
B70: Off-Peak kWh (¢/kWh) | D70: =ROUND(D25*$D$50/10,3) -> 5.56
B72: Demand Charge ($/kW) 1st 5kW | H72: ='BGS Cost & Bid Factors'!H214 -> 1.034
B73: Demand Charge ($/kW) > 5 kW | H73: ='BGS Cost & Bid Factors'!I214 -> 2.682
A76: Table D | B76: Calculation of Rate Adjustment Factors
C78: ='BGS Cost & Bid Factors'!C$6 -> SC1 | D78: ='BGS Cost & Bid Factors'!D$6 -> SC3 | E78: ='BGS Cost & Bid Factors'!E$6 -> SC2 ND | F78: ='BGS Cost & Bid Factors'!F$6 -> SC4 | G78: ='BGS Cost & Bid Factors'!G$6 -> SC6 | H78: ='BGS Cost & Bid Factors'!H$6 -> SC2 Dem | K78: SC2 Sales and Demands
B79: Total BGS Revenue (Excl SUT) - in $1000 | L79: Over 5 kW
B80: Summer | C80: =ROUND((C57*'BGS Cost & Bid Factors'!L$48)/100,0) -> 18225 | D80: =ROUND((D58*'BGS Cost & Bid Factors'!M$49+D59*'BGS Cost & Bid Factors'!M$50)/100,0) -> 7 | E80: =ROUND((E57*'BGS Cost & Bid Factors'!N$48)/100,0) -> 234 | F80: =ROUND((F57*'BGS Cost & Bid Factors'!O$48)/100,0) -> 95 | G80: =ROUND((G57*'BGS Cost & Bid Factors'!P$48)/100,0) -> 70 | H80: =ROUND(H57*'BGS Cost & Bid Factors'!Q$48/100+(H64*($L$80/4*'BGS Cost & Bid Factors'!H$144)+H65*($L$80/4*'BGS Cost & Bid Factors'!H$144))/1000,0) -> 7219 | K80: Summer | L80: ='Backup Calcs'!$I$95 -> 343315.1129
B81: Winter | C81: =ROUND(C68*'BGS Cost & Bid Factors'!L$44/100,0) -> 26964 | D81: =ROUND((D69*'BGS Cost & Bid Factors'!M$45+D70*'BGS Cost & Bid Factors'!M$46)/100,0) -> 15 | E81: =ROUND(E68*'BGS Cost & Bid Factors'!N$44/100,0) -> 701 | F81: =ROUND(F68*'BGS Cost & Bid Factors'!O$44/100,0) -> 269 | G81: =ROUND(G68*'BGS Cost & Bid Factors'!P$44/100,0) -> 204 | H81: =ROUND(H68*'BGS Cost & Bid Factors'!Q$44/100+(H72*($L$81/8*'BGS Cost & Bid Factors'!H$145)++H73*($L$81/8*'BGS Cost & Bid Factors'!H$145))/1000,0) -> 14688 | K81: Winter | L81: ='Backup Calcs'!$I$96 -> 623356.553
B82: Total | C82: =+C81+C80 -> 45189 | D82: 22 | E82: 935 | F82: 364 | G82: 274 | H82: 21907
B84: Total
B85: Summer | C85: =SUM(C80:H80) -> 25850
B86: Winter | C86: =SUM(C81:H81) -> 42841
B87: Total | C87: =+C86+C85 -> 68691
B90: Total Supplier Payments - in $1000
B92: Eastern Division | C92: Total | D92: Transmission | E92: Net BGS
B93: Summer | C93: ='Weighted Avg Price Calc'!G$29/1000 -> 24182.067 | E93: =C93-D93 -> 24182.067 | G93: =ROUND('BGS Cost & Bid Factors'!$C$147*SUM('BGS Cost & Bid Factors'!$C$141:$H$141)/12*'BGS Cost & Bid Factors'!H$144/1000*'BGS Cost & Bid Factors'!D447,0) -> 4937
B94: Winter | C94: ='Weighted Avg Price Calc'!G$30/1000 -> 35109.971 | E94: =C94-D94 -> 35109.971 | G94: =ROUND('BGS Cost & Bid Factors'!$C$147*SUM('BGS Cost & Bid Factors'!$C$141:$H$141)/12*'BGS Cost & Bid Factors'!H$145/1000*'BGS Cost & Bid Factors'!F459,0) -> 9875
B95: Total | C95: =+C94+C93 -> 59292.038 | D95: =D93+D94 -> 0 | E95: =E93+E94 -> 59292.038
B97: Central/Western Division | C97: Total | D97: Transmission | E97: Net BGS
B98: Summer | C98: =ROUND($E$251*1000*'Weighted Avg Price Calc'!E42/100/1000,0) -> 3865 | D98: 0 | E98: =C98-D98 -> 3865
B99: Winter | C99: =ROUND($E$252*1000*'Weighted Avg Price Calc'!E42/100/1000,0) -> 5560 | D99: 0 | E99: =C99-D99 -> 5560
B100: Total | C100: =+C99+C98 -> 9425 | D100: =D98+D99 -> 0 | E100: =E98+E99 -> 9425
B102: Total RECO FP | C102: Total | D102: Transmission | E102: Net BGS
B103: Summer | C103: =C93+C98 -> 28047.067 | D103: =D93+D98 -> 0 | E103: =C103-D103 -> 28047.067
B104: Winter | C104: =C94+C99 -> 40669.971 | D104: =D94+D99 -> 0 | E104: =C104-D104 -> 40669.971
B105: Total | C105: =+C104+C103 -> 68717.038 | D105: =+D104+D103 -> 0 | E105: =E103+E104 -> 68717.038
G106: Rate
B107: Differences | C107: BGS | D107: BGS | G107: Adjustment
C108: Revenue | D108: Costs | E108: Difference | G108: Factors
B109: Summer | C109: =C85 -> 25850 | D109: =E103 -> 28047.067 | E109: =D109-C109 -> 2197.067 | G109: =ROUND(1+E109/C85,5) -> 1.08499
B110: Winter | C110: =C86 -> 42841 | D110: =E104 -> 40669.971 | E110: =D110-C110 -> -2171.029 | G110: =ROUND(1+E110/C86,5) -> 0.94932
B111: Total | C111: =+C110+C109 -> 68691 | D111: =+D110+D109 -> 68717.038 | E111: =+E110+E109 -> 26.038
A113: Table E | B113: Final Retail BGS Rates (¢/kWh)
B116: Rates Excluding SUT: | K116: Original Rates Excluding SUT (zero Retail Access Adjustment) | T116: Difference | AC116: Difference
C118: ='BGS Cost & Bid Factors'!C$6 -> SC1 | D118: ='BGS Cost & Bid Factors'!D$6 -> SC3 | E118: ='BGS Cost & Bid Factors'!E$6 -> SC2 ND | F118: ='BGS Cost & Bid Factors'!F$6 -> SC4 | G118: ='BGS Cost & Bid Factors'!G$6 -> SC6 | H118: ='BGS Cost & Bid Factors'!H$6 -> SC2 Dem | L118: SC1 | M118: SC3 | N118: SC2 ND | O118: SC4 | P118: SC6 | Q118: SC2 Dem | T118: SC1 | U118: SC3 | V118: SC2 ND | W118: SC4 | X118: SC6 | Y118: SC2 Dem | AB118: SC1 | AD118: SC3 | AE118: SC2 ND | AF118: SC4 | AG118: SC6 | AH118: SC2 Dem
B120: Summer | K120: Summer | S120: Summer | AA120: Summer
B121: All kWh (¢/kWh) | C121: =ROUND(C57*$G$109,3) -> 6.859 | E121: =ROUND(E57*$G$109,3) -> 6.115 | F121: =ROUND(F57*$G$109,3) -> 5.582 | G121: =ROUND(G57*$G$109,3) -> 5.575 | H121: =ROUND(H57*$G$109,3) -> 5.473 | K121: All kWh (¢/kWh) | L121: 9.55 | N121: 9.709 | O121: 5.886 | P121: 5.886 | Q121: 7.498 | S121: All kWh (¢/kWh) | T121: =C121-L121 -> -2.691 | V121: =E121-N121 -> -3.594 | W121: =F121-O121 -> -0.304 | X121: =G121-P121 -> -0.311 | Y121: =H121-Q121 -> -2.025 | AA121: All kWh (¢/kWh) | AB121: =T121/L121 -> -0.2817801047 | AD121: =V121/N121 -> -0.3701720054 | AE121: =W121/O121 -> -0.05164797825 | AF121: =X121/P121 -> -0.05283724091 | AG121: =Y121/Q121 -> -0.2700720192
B122: Peak kWh (¢/kWh) | D122: =ROUND(D58*$G$109,3) -> 9.408 | K122: Peak kWh (¢/kWh) | M122: 14.58 | S122: Peak kWh (¢/kWh) | U122: =D122-M122 -> -5.172 | AA122: Peak kWh (¢/kWh) | AC122: =U122/M122 -> -0.3547325103
B123: Off-Peak kWh (¢/kWh) | D123: =ROUND(D59*$G$109,3) -> 4.926 | K123: Off-Peak kWh (¢/kWh) | M123: 5.771 | S123: Off-Peak kWh (¢/kWh) | U123: =D123-M123 -> -0.845 | AA123: Off-Peak kWh (¢/kWh) | AC123: =U123/M123 -> -0.146421764
B124: Block1 | C124: =ROUND(C60*$G$109,3) -> 3.994 | K124: Block1 | L124: 8.412 | S124: Block1 | T124: =C124-L124 -> -4.418 | AA124: Block1 | AB124: =T124/L124 -> -0.5252020922
B125: Block2 | C125: =ROUND(C61*$G$109,3) -> 9.018 | K125: Block2 | L125: 9.839 | S125: Block2 | T125: =C125-L125 -> -0.821 | AA125: Block2 | AB125: =T125/L125 -> -0.08344343937
K126: Block3 | L126: NA | S126: Block3 | T126: NA | AA126: Block3 | AB126: NA
B128: Demand Charge ($/kW) 1st 5kW | H128: =ROUND(H64*$G$109,3) -> 0.869 | K128: Demand Charge ($/kW) | Q128: 5.442 | S128: Demand Charge ($/kW) | Y128: =H128-Q128 -> -4.573 | AA128: Demand Charge ($/kW) | AG128: =Y128/Q128 -> -0.8403160603
B129: Demand Charge ($/kW) > 5 kW | H129: =ROUND(H65*$G$109,3) -> 3.203
K130: Winter | S130: Winter | AA130: Winter
B131: Winter | K131: All kWh (¢/kWh) | L131: 9.738 | N131: 8.177 | O131: 5.846 | P131: 5.821 | Q131: 6.754 | S131: All kWh (¢/kWh) | T131: =C132-L131 -> -2.678 | V131: =E132-N131 -> -2.265 | W131: =F132-O131 -> -0.316 | X131: =G132-P131 -> -0.309 | Y131: =H132-Q131 -> -1.367 | AA131: All kWh (¢/kWh) | AB131: =T131/L131 -> -0.2750051345 | AD131: =V131/N131 -> -0.2769964535 | AE131: =W131/O131 -> -0.05405405405 | AF131: =X131/P131 -> -0.0530836626 | AG131: =Y131/Q131 -> -0.2023985786
B132: All kWh (¢/kWh) | C132: =ROUND(C68*$G$110,3) -> 7.06 | E132: =ROUND(E68*$G$110,3) -> 5.912 | F132: =ROUND(F68*$G$110,3) -> 5.53 | G132: =ROUND(G68*$G$110,3) -> 5.512 | H132: =ROUND(H68*$G$110,3) -> 5.387 | K132: Peak kWh (¢/kWh) | M132: 12.37 | S132: Peak kWh (¢/kWh) | U132: =D133-M132 -> -3.259 | AA132: Peak kWh (¢/kWh) | AC132: =U132/M132 -> -0.2634599838
B133: Peak kWh (¢/kWh) | D133: =ROUND(D69*$G$110,3) -> 9.111 | K133: Off-Peak kWh (¢/kWh) | M133: 5.696 | S133: Off-Peak kWh (¢/kWh) | U133: =D134-M133 -> -0.418 | AA133: Off-Peak kWh (¢/kWh) | AC133: =U133/M133 -> -0.07338483146
B134: Off-Peak kWh (¢/kWh) | D134: =ROUND(D70*$G$110,3) -> 5.278
K135: Demand Charge ($/kW) | Q135: 5.4 | S135: Demand Charge ($/kW) | Y135: =H136-Q135 -> -4.418 | AA135: Demand Charge ($/kW) | AG135: =Y135/Q135 -> -0.8181481481
B136: Demand Charge ($/kW) 1st 5kW | H136: =ROUND(H72*$G$110,3) -> 0.982
B137: Demand Charge ($/kW) > 5 kW | H137: =ROUND(H73*$G$110,3) -> 2.546
B139: Rates Including SUT: | D139: SUT @ | E139: 0.06625
C141: SC1 | D141: SC3 | E141: SC2 ND | F141: SC4 | G141: SC6 | H141: SC2 Dem
B142: Summer
B143: All kWh (¢/kWh) | E143: =ROUND(E121*(1+$E$139),3) -> 6.52 | F143: =ROUND(F121*(1+$E$139),3) -> 5.952 | G143: =ROUND(G121*(1+$E$139),3) -> 5.944 | H143: =ROUND(H121*(1+$E$139),3) -> 5.836
B144: Peak kWh (¢/kWh) | D144: =ROUND(D122*(1+$E$139),3) -> 10.031
B145: Off-Peak kWh (¢/kWh) | D145: =ROUND(D123*(1+$E$139),3) -> 5.252
B146: Block1 | C146: =ROUND(C124*(1+$E$139),3) -> 4.259
B147: Block2 | C147: =ROUND(C125*(1+$E$139),3) -> 9.615
B150: Demand Charge ($/kW) 1st 5kW | H150: =ROUND(H128*(1+$E$139),2) -> 0.93
B151: Demand Charge ($/kW)> 5 kW | H151: =ROUND(H129*(1+$E$139),2) -> 3.42
B153: Winter
B154: All kWh (¢/kWh) | C154: =ROUND(C132*(1+$E$139),3) -> 7.528 | E154: =ROUND(E132*(1+$E$139),3) -> 6.304 | F154: =ROUND(F132*(1+$E$139),3) -> 5.896 | G154: =ROUND(G132*(1+$E$139),3) -> 5.877 | H154: =ROUND(H132*(1+$E$139),3) -> 5.744
B155: Peak kWh (¢/kWh) | D155: =ROUND(D133*(1+$E$139),3) -> 9.715
B156: Off-Peak kWh (¢/kWh) | D156: =ROUND(D134*(1+$E$139),3) -> 5.628
B158: Demand Charge ($/kW) 1st 5kW | H158: =ROUND(H136*(1+$E$139),2) -> 1.05
B159: Demand Charge ($/kW) > 5 kW | H159: =ROUND(H137*(1+$E$139),2) -> 2.71
A162: Table F | B162: Spreadsheet Error Checking
B165: Total BGS Revenue (Excl SUT) - in $1000
C167: ='BGS Cost & Bid Factors'!C$6 -> SC1 | D167: ='BGS Cost & Bid Factors'!D$6 -> SC3 | E167: ='BGS Cost & Bid Factors'!E$6 -> SC2 ND | F167: ='BGS Cost & Bid Factors'!F$6 -> SC4 | G167: ='BGS Cost & Bid Factors'!G$6 -> SC6 | H167: ='BGS Cost & Bid Factors'!H$6 -> SC2 Dem | K167: SC2 Sales and Demands
L168: Over 5 kW
B169: Summer | C169: =ROUND((C121*'BGS Cost & Bid Factors'!L$48)/100,0) -> 19773 | D169: =ROUND((D122*'BGS Cost & Bid Factors'!M$49+D123*'BGS Cost & Bid Factors'!M$50)/100,0) -> 8 | E169: =ROUND((E121*'BGS Cost & Bid Factors'!N$48)/100,0) -> 254 | F169: =ROUND((F121*'BGS Cost & Bid Factors'!O$48)/100,0) -> 103 | G169: =ROUND((G121*'BGS Cost & Bid Factors'!P$48)/100,0) -> 76 | H169: =ROUND(H121*'BGS Cost & Bid Factors'!Q$48/100+(H128*($L$169/4*'BGS Cost & Bid Factors'!H$144)+H129*($L$169/4*'BGS Cost & Bid Factors'!H$144))/1000,0) -> 7833 | K169: Summer | L169: ='Backup Calcs'!$I$95 -> 343315.1129
B170: Winter | C170: =ROUND(C132*'BGS Cost & Bid Factors'!L$44/100,0) -> 25597 | D170: =ROUND((D133*'BGS Cost & Bid Factors'!M$45+D134*'BGS Cost & Bid Factors'!M$46)/100,0) -> 14 | E170: =ROUND(E132*'BGS Cost & Bid Factors'!N$44/100,0) -> 665 | F170: =ROUND(F132*'BGS Cost & Bid Factors'!O$44/100,0) -> 255 | G170: =ROUND(G132*'BGS Cost & Bid Factors'!P$44/100,0) -> 193 | H170: =ROUND(H132*'BGS Cost & Bid Factors'!Q$44/100+(H136*($L$170/8*'BGS Cost & Bid Factors'!H$145)+H137*($L$170/8*'BGS Cost & Bid Factors'!H$145))/1000,0) -> 13943 | K170: Winter | L170: ='Backup Calcs'!$I$96 -> 623356.553
B171: Total | C171: =+C170+C169 -> 45370 | D171: 22 | E171: 919 | F171: 358 | G171: 269 | H171: 21776
B173: Total
B174: Summer | C174: =SUM(C169:H169) -> 28047
B175: Winter | C175: =SUM(C170:H170) -> 40667
B176: Total | C176: =+C175+C174 -> 68714
B178: Supplier Payments - in $1000
B180: Eastern Division
C181: Total | D181: Transmission | E181: Net BGS
B182: Summer | C182: ='Weighted Avg Price Calc'!G$29/1000 -> 24182.067 | D182: 0 | E182: =C182-D182 -> 24182.067 | G182: =ROUND('BGS Cost & Bid Factors'!$C$147*SUM('BGS Cost & Bid Factors'!$C$141:$H$141)/12*'BGS Cost & Bid Factors'!H$144/1000*'BGS Cost & Bid Factors'!D447,0) -> 4937
B183: Winter | C183: ='Weighted Avg Price Calc'!G$30/1000 -> 35109.971 | D183: 0 | E183: =C183-D183 -> 35109.971 | G183: =ROUND('BGS Cost & Bid Factors'!$C$147*SUM('BGS Cost & Bid Factors'!$C$141:$H$141)/12*'BGS Cost & Bid Factors'!H$145/1000*'BGS Cost & Bid Factors'!D447,0) -> 9875
B184: Total | C184: =+C183+C182 -> 59292.038 | D184: =D182+D183 -> 0 | E184: =E182+E183 -> 59292.038
B186: Central/Western Division
C187: Total | D187: Transmission | E187: Net BGS
B188: Summer | C188: =ROUND($E$251*1000*'Weighted Avg Price Calc'!E42/100/1000,0) -> 3865 | D188: 0 | E188: =C188-D188 -> 3865
B189: Winter | C189: =ROUND($E$252*1000*'Weighted Avg Price Calc'!E42/100/1000,0) -> 5560 | D189: 0 | E189: =C189-D189 -> 5560
B190: Total | C190: =+C189+C188 -> 9425 | D190: =D188+D189 -> 0 | E190: =E188+E189 -> 9425
B192: Total RECO FP
C193: Total | D193: Transmission | E193: Net BGS
B194: Summer | C194: =C182+C188 -> 28047.067 | D194: =D182+D188 -> 0 | E194: =C194-D194 -> 28047.067
B195: Winter | C195: =C183+C189 -> 40669.971 | D195: =D183+D189 -> 0 | E195: =C195-D195 -> 40669.971
B196: Total | C196: =+C195+C194 -> 68717.038 | D196: =D194+D195 -> 0 | E196: =E194+E195 -> 68717.038
B198: Differences
C199: BGS | D199: BGS
C200: Revenue | D200: Costs | E200: Difference
B201: Summer | C201: =C174 -> 28047 | D201: =E194 -> 28047.067 | E201: =D201-C201 -> 0.067
B202: Winter | C202: =C175 -> 40667 | D202: =E195 -> 40669.971 | E202: =D202-C202 -> 2.971
B203: Total | C203: =+C202+C201 -> 68714 | D203: =+D202+D201 -> 68717.038 | E203: =+E202+E201 -> 3.038
B205: Determination of Retail Rates to be Charged to BGS Customers (INCLUDING RETAIL TRANSMISSION RATES)
B207: Transmission Rates (excl SUT)
C208: =C55 -> SC1 | D208: =D55 -> SC3 | E208: =E55 -> SC2 ND | F208: =F55 -> SC4 | G208: =G55 -> SC6 | H208: =H55 -> SC2 Dem
B209: Cents/kWh | C209: ='BGS Cost & Bid Factors'!C538 -> 1.421 | D209: ='BGS Cost & Bid Factors'!D538 -> 1.421 | E209: ='BGS Cost & Bid Factors'!E538 -> 0.523 | F209: ='BGS Cost & Bid Factors'!F538 -> 1.147 | G209: ='BGS Cost & Bid Factors'!G538 -> 1.147 | H209: ='BGS Cost & Bid Factors'!H538 -> 0.523
B210: $/kW | H210: ='BGS Cost & Bid Factors'!H539 -> 1.32
H211: ='BGS Cost & Bid Factors'!H540 -> 1.11
B214: Retail Shopping Credits (BGS and Transmission Rates) (excl SUT) (¢/kWh)
B217: Summer
B218: All kWh (¢/kWh) | C218: =IF(C121>0,C121+C$209,"") -> 8.28 | E218: 6.638 | F218: 6.729 | G218: 6.722 | H218: 5.996
B219: Peak kWh (¢/kWh) | D219: 10.829
B220: Off-Peak kWh (¢/kWh) | D220: 6.347
B221: Block1 | C221: 5.415
B222: Block2 | C222: 10.439
B225: Demand Charge ($/kW) 1st 5kW | D225: =IF(D128>0,D128+D$209,"") ->  | E225: =IF(E128>0,E128+E$209,"") ->  | F225: =IF(F128>0,F128+F$209,"") ->  | G225: =IF(G128>0,G128+G$209,"") ->  | H225: =IF(H128>0,H128+H$210,"") -> 2.189
B226: Demand Charge ($/kW) > 5 kW | H226: =IF(H129>0,H129+H$210,"") -> 4.523
B228: Winter
B229: All kWh (¢/kWh) | C229: =IF(C132>0,C132+C$209,"") -> 8.481 | E229: 6.435 | F229: 6.677 | G229: 6.659 | H229: 5.91
B230: Peak kWh (¢/kWh) | D230: 10.532
B231: Off-Peak kWh (¢/kWh) | D231: 6.699
B233: Demand Charge ($/kW) 1st 5kW | D233: =IF(D136>0,D136+D$209,"") ->  | E233: =IF(E136>0,E136+E$209,"") ->  | F233: =IF(F136>0,F136+F$209,"") ->  | G233: =IF(G136>0,G136+G$209,"") ->  | H233: =IF(H136>0,H136+H$211,"") -> 2.092
B234: Demand Charge ($/kW) > 5 kW | H234: =IF(H137>0,H137+H$211,"") -> 3.656
A237: DETAILS OF RECO RFP AND INPUTS
B239: Summary of Usage By Season
B241: Sales:
D242: Eastern | E242: Cen/West | F242: Total
C244: Summer | D244: 359348 | E244: 53992 | F244: =SUM(D244:E244) -> 413340
C245: Winter | D245: 521768 | E245: 78396 | F245: =SUM(D245:E245) -> 600164
C246: Total | D246: =SUM(D244:D245) -> 881116 | E246: =SUM(E244:E245) -> 132388 | F246: 1013504
B248: Sendout:
D249: Eastern | E249: Cen/West | F249: Total
C251: Summer | D251: 386727.4406 | E251: 58650.63107 | F251: =SUM(D251:E251) -> 445378.0716
C252: Winter | D252: 561490.0023 | E252: 84364.25983 | F252: =SUM(D252:E252) -> 645854.2621
C253: Total | D253: =SUM(D251:D252) -> 948217.4429 | E253: =SUM(E251:E252) -> 143014.8909 | F253: 1091232.334
D257: ORU Budget | E257: Total NUG | H257: Hedged Energy | K257: Unhedged Energy | N257: Ancillary Services | P257: Hedged Capacity | S257: Unhedged Capacity
D258: Sendout (MWh) | E258: Output (MWh) | F258: Energy Charge ($/MWh) | G258: Total ($) | H258: Sendout (MWh) | I258: Energy Charge ($/MWh) | J258: Total ($) | K258: Sendout (MWh) | L258: ATC Forward Energy ($/MWh) | M258: Total ($) | N258: Charge ($/MWh) | O258: Total ($) | P258: Peak Load (MW) | Q258: Capacity Charge ($/kW-month) | R258: Total ($) | S258: Peak Load (MW) | T258: Capacity Charge ($/kW-month) | U258: Total ($)
B260: 2022-06-01 | D260: 9962 | H260: 7200 | I260: 32.39 | J260: =H260*I260 -> 233208 | K260: =D260-H260 -> 2762 | L260: 36.88888889 | M260: =K260*L260 -> 101887.1111 | N260: 1.754070109 | O260: =N260*(K260+H260) -> 17474.04642 | P260: 0 | Q260: 0 | R260: =P260*Q260*1000 -> 0 | S260: 50.42034748 | T260: 5.640733133 | U260: =S260*T260*1000 -> 284407.7246
B261: =B260+31-DAY(B260+31)+1 -> 2022-07-01 | D261: 14114 | H261: 7440 | I261: 32.39 | J261: 240981.6 | K261: =D261-H261 -> 6674 | L261: 46.41397849 | M261: 309766.8925 | N261: 1.563979074 | O261: 22074.00065 | P261: 0 | Q261: 0 | R261: =P261*Q261*1000 -> 0 | S261: 50.42034748 | T261: 5.676020926 | U261: =S261*T261*1000 -> 286186.9474
B262: =B261+31-DAY(B261+31)+1 -> 2022-08-01 | D262: 12280 | H262: 7440 | I262: 32.39 | J262: 240981.6 | K262: 4840 | L262: 44.80645161 | M262: 216863.2258 | N262: 1.514732271 | O262: 18600.91229 | P262: 0 | Q262: 0 | R262: 0 | S262: 50.42034748 | T262: 5.676134495 | U262: 286192.6736
B263: 2022-09-01 | D263: 8929 | H263: 7200 | I263: 32.39 | J263: 233208 | K263: 1729 | L263: 36.88333333 | M263: 63771.28333 | N263: 1.359219398 | O263: 12136.47 | P263: 0 | Q263: 0 | R263: 0 | S263: 50.42034748 | T263: 5.691064634 | U263: 286945.4564
B264: 2022-10-01 | D264: 7562 | H264: 7440 | I264: 32.39 | J264: 240981.6 | K264: 122 | L264: 37.16935484 | M264: 4534.66129 | N264: 1.331826728 | O264: 10071.27371 | P264: 0 | Q264: 0 | R264: 0 | S264: 50.42034748 | T264: 5.744366588 | U264: 289632.9594
B265: 2022-11-01 | D265: 6966 | H265: 7210 | I265: 32.39 | J265: 233531.9 | K265: -244 | L265: 43.84223301 | M265: -10697.50485 | N265: 1.871761213 | O265: 13038.68861 | P265: 0 | Q265: 0 | R265: 0 | S265: 50.42034748 | T265: 3.801556149 | U265: 191675.782
B266: 2022-12-01 | D266: 7662 | H266: 7440 | I266: 32.39 | J266: 240981.6 | K266: 222 | L266: 61.38709677 | M266: 13627.93548 | N266: 1.908441136 | O266: 14622.47598 | P266: 0 | Q266: 0 | R266: 0 | S266: 50.42034748 | T266: 3.749183898 | U266: 189035.1549
B267: 2023-01-01 | D267: 10433 | H267: 7440 | I267: 32.39 | J267: 240981.6 | K267: 2993 | L267: 86.86290323 | M267: 259980.6694 | N267: 1.920454588 | O267: 20036.10272 | P267: 0 | Q267: 0 | R267: 0 | S267: 50.42034748 | T267: 4.095010187 | U267: 206471.8366
B268: 2023-02-01 | D268: 8865 | H268: 6720 | I268: 32.39 | J268: 217660.8 | K268: 2145 | L268: 84.77380952 | M268: 181839.8214 | N268: 1.959953793 | O268: 17374.99038 | P268: 0 | Q268: 0 | R268: 0 | S268: 50.42034748 | T268: 3.991940504 | U268: 201275.0273
B269: 2023-03-01 | D269: 8601 | H269: 7430 | I269: 32.39 | J269: 240657.7 | K269: 1171 | L269: 55.82671602 | M269: 65373.08445 | N269: 2.136973825 | O269: 18380.11187 | P269: 0 | Q269: 0 | R269: 0 | S269: 50.42034748 | T269: 4.000341452 | U269: 201698.606
B270: 2023-04-01 | D270: 6506 | H270: 7200 | I270: 32.39 | J270: 233208 | K270: -694 | L270: 37.55555556 | M270: -26063.55556 | N270: 2.033079241 | O270: 13227.21354 | P270: 0 | Q270: 0 | R270: 0 | S270: 50.42034748 | T270: 3.969989372 | U270: 200168.2436
B271: 2023-05-01 | D271: 7937 | H271: 7440 | I271: 32.39 | J271: 240981.6 | K271: 497 | L271: 32.77419355 | M271: 16288.77419 | N271: 2.373315742 | O271: 18837.00704 | P271: 0 | Q271: 0 | R271: 0 | S271: 50.42034748 | T271: 7.586376677 | U271: 382507.7481
B273: Total | D273: =SUM(D260:D272) -> 109817 | E273: 0 | F273: 0 | G273: 0 | H273: =SUM(H260:H272) -> 87600 | J273: =SUM(J260:J272) -> 2837364 | K273: =SUM(K260:K272) -> 22217 | M273: =SUM(M260:M272) -> 1197172.399 | N273: =O273/D273 -> 1.78363362 | O273: =SUM(O260:O271) -> 195873.2932 | R273: =SUM(R260:R272) -> 0 | U273: =SUM(U260:U272) -> 3006198.16
B277: Avg Annual Price for RECO RFP
B279: At Market NUGS | D279: =$G$273 -> 0 | E279: =ROUND(D279/$D$273,2) -> 0
B280: Hedged Energy | D280: =$J$273 -> 2837364 | E280: =ROUND(D280/$D$273,2) -> 25.84
B281: Unhedged Energy | D281: =$M$273 -> 1197172.399 | E281: =ROUND(D281/$K$273,2) -> 53.89
B282: Ancillary Services | D282: =O273 -> 195873.2932 | E282: =ROUND(D282/$D$273,2) -> 1.78
B283: Hedged Capacity | D283: =U273 -> 3006198.16 | E283: =ROUND(D283/$D$273,2) -> 27.37
... 3 more rows

Sheet Backup Calcs
A1: SC2 Sales and Demands
A3: Actual Data
C4: Percent | O4: Number of | P4: Average Use/
B5: Total | C5: Non-Demand | D5: Non-Demand | E5: Demand | F5: Hours | H5: First | I5: Over 5 | N5: % of 5kW | O5: Demand Billed | P5: Demand Billed
B6: MWh | C6: Metered | D6: Metered MWh | E6: Metered MWh | F6: Use | G6: kW | H6: 5 kW | I6: kW | N6: Per Cust | O6: Customers | P6: Customers
A8: Jan | B8: =D8+E8 -> 56590.87473 | C8: =ROUND(D8/B8,4) -> 0.0433 | D8: 2452.765368 | E8: 54138.10937 | F8: =E8*1000/G8 -> 373.9950991 | G8: =H8+I8 -> 144756.2 | H8: 27387.1 | I8: 117369.1 | N8: =H8/(O8*5) -> 0.7669702076 | O8: 7141.633333 | P8: =E8/O8*1000 -> 7580.634127
A9: Feb | B9: =D9+E9 -> 45048.8348 | C9: =ROUND(D9/B9,4) -> 0.0555 | D9: 2501.708316 | E9: 42547.12649 | F9: =E9*1000/G9 -> 299.7023659 | G9: =H9+I9 -> 141964.6 | H9: 27425.9 | I9: 114538.7 | N9: =H9/(O9*5) -> 0.7656018536 | O9: 7164.533333 | P9: =E9/O9*1000 -> 5938.576109
A10: Mar | B10: 32183.75087 | C10: 0.0643 | D10: 2069.829338 | E10: 30113.92153 | F10: 216.9165807 | G10: 138827.2 | H10: 25852.7 | I10: 112974.5 | N10: 0.7688116137 | O10: 6725.366667 | P10: 4477.662412
A11: Apr | B11: 46104.57654 | C11: 0.0368 | D11: 1698.918795 | E11: 44405.65774 | F11: 285.9435304 | G11: 155295.2 | H11: 28847.1 | I11: 126448.1 | N11: 0.754708573 | O11: 7644.566667 | P11: 5808.786774
A12: May | B12: 42354.40305 | C12: 0.0325 | D12: 1376.036563 | E12: 40978.36648 | F12: 278.1671899 | G12: 147315.6 | H12: 27293.4 | I12: 120022.2 | N12: 0.7606467525 | O12: 7176.366667 | P12: 5710.182936
A13: Jun | B13: 46527.83623 | C13: 0.0292 | D13: 1358.185064 | E13: 45169.65117 | F13: 281.8162607 | G13: 160280.5 | H13: 26477.1 | I13: 133803.4 | N13: 0.7474409764 | O13: 7084.733333 | P13: 6375.631805
A14: Jul | B14: 50876.05404 | C14: 0.0303 | D14: 1541.091734 | E14: 49334.96231 | F14: 289.6258977 | G14: 170340.3 | H14: 26497.4 | I14: 143842.9 | N14: 0.7489548934 | O14: 7075.833333 | P14: 6972.31831
A15: Aug | B15: 54049.89658 | C15: 0.029 | D15: 1566.185743 | E15: 52483.71084 | F15: 315.1249323 | G15: 166548.9 | H15: 26519.5 | I15: 140029.4 | N15: 0.7324985614 | O15: 7240.833333 | P15: 7248.297043
A16: Sep | B16: 51025.7833 | C16: 0.0279 | D16: 1423.172272 | E16: 49602.61103 | F16: 296.3196824 | G16: 167395.6 | H16: 26809.3 | I16: 140586.3 | N16: 0.7423177384 | O16: 7223.133333 | P16: 6867.187513
A17: Oct | B17: 47378.75258 | C17: 0.0302 | D17: 1431.450589 | E17: 45947.30199 | F17: 299.7869854 | G17: 153266.5 | H17: 26862.9 | I17: 126403.6 | N17: 0.748388325 | O17: 7178.866667 | P17: 6400.355951
A18: Nov | B18: 42414.99965 | C18: 0.0321 | D18: 1362.596526 | E18: 41052.40312 | F18: 289.0432147 | G18: 142028.6 | H18: 27052.4 | I18: 114976.2 | N18: 0.7622255198 | O18: 7098.266667 | P18: 5783.440529
A19: Dec | B19: 46830.99354 | C19: 0.0446 | D19: 2090.931508 | E19: 44740.06204 | F19: 306.1533874 | G19: 146136.1 | H19: 27548.1 | I19: 118588 | N19: 0.760325127 | O19: 7246.4 | P19: 6174.108804
A21: Total | B21: =SUM(B8:B19) -> 561386.7559 | D21: =SUM(D8:D19) -> 20872.87182 | E21: =SUM(E8:E19) -> 540513.8841 | G21: =SUM(G8:G19) -> 1834155.3 | H21: =SUM(H8:H19) -> 324572.9 | I21: =SUM(I8:I19) -> 1509582.4
D22: =ROUND(D21/B21,3) -> 0.037 | E22: =ROUND(E21/B21,3) -> 0.963
A24: Summer | B24: =SUM(B13:B16) -> 202479.5702 | D24: =SUM(D13:D16) -> 5888.634812 | E24: =SUM(E13:E16) -> 196590.9353 | G24: =SUM(G13:G16) -> 664565.3 | H24: =SUM(H13:H16) -> 106303.3 | I24: =SUM(I13:I16) -> 558262
A25: Winter | B25: =SUM(B8:B12)+SUM(B17:B19) -> 358907.1858 | D25: =SUM(D8:D12)+SUM(D17:D19) -> 14984.237 | E25: =SUM(E8:E12)+SUM(E17:E19) -> 343922.9488 | G25: =SUM(G8:G12)+SUM(G17:G19) -> 1169590 | H25: =SUM(H8:H12)+SUM(H17:H19) -> 218269.6 | I25: =SUM(I8:I12)+SUM(I17:I19) -> 951320.4
A28: Forecast Data - Without CIEP Expansion
C30: Percent | O30: Number of | P30: Average Use/
B31: Total | C31: Non-Demand | D31: Non-Demand | E31: Demand | F31: Hours | H31: First | I31: Over 5 | N31: % of 5kW | O31: Demand Billed | P31: Demand Billed
B32: MWh | C32: Metered | D32: Metered MWh | E32: Metered MWh | F32: Use | G32: kW | H32: 5 kW | I32: kW | N32: Per Cust | O32: Customers | P32: Customers
A34: Jan | B34: 37514.5 | C34: =C8 -> 0.0433 | D34: =ROUND(B34*C8,0) -> 1624 | E34: =B34-D34 -> 35890.5 | F34: =F8 -> 373.9950991 | G34: =ROUND(E34*1000/F34,0) -> 95965 | H34: =O34*5*N34 -> 18156.09603 | I34: =G34-H34 -> 77808.90397 | N34: =N8 -> 0.7669702076 | O34: =E34/P34*1000 -> 4734.498381 | P34: =P8 -> 7580.634127
A35: Feb | B35: 32174 | C35: =C9 -> 0.0555 | D35: 1786 | E35: =B35-D35 -> 30388 | F35: =F9 -> 299.7023659 | G35: =ROUND(E35*1000/F35,0) -> 101394 | H35: =O35*5*N35 -> 19588.1207 | I35: =G35-H35 -> 81805.8793 | N35: =N9 -> 0.7656018536 | O35: =E35/P35*1000 -> 5117.051536 | P35: =P9 -> 5938.576109
A36: Mar | B36: 33355.5 | C36: 0.0643 | D36: 2145 | E36: 31210.5 | F36: 216.9165807 | G36: 143883 | H36: 26794.10891 | I36: 117088.8911 | N36: 0.7688116137 | O36: 6970.26643 | P36: 4477.662412
A37: Apr | B37: 33731.5 | C37: 0.0368 | D37: 1241 | E37: 32490.5 | F37: 285.9435304 | G37: 113626 | H37: 21106.69564 | I37: 92519.30436 | N37: 0.754708573 | O37: 5593.336658 | P37: 5808.786774
A38: May | B38: 30094.5 | C38: 0.0325 | D38: 978 | E38: 29116.5 | F38: 278.1671899 | G38: 104673 | H38: 19392.87359 | I38: 85280.12641 | N38: 0.7606467525 | O38: 5099.048547 | P38: 5710.182936
A39: Jun | B39: 32415.5 | C39: 0.0292 | D39: 947 | E39: 31468.5 | F39: 281.8162607 | G39: 111663 | H39: 18445.89453 | I39: 93217.10547 | N39: 0.7474409764 | O39: 4935.746129 | P39: 6375.631805
A40: Jul | B40: 36516 | C40: 0.0303 | D40: 1106 | E40: 35410 | F40: 289.6258977 | G40: 122261 | H40: 19018.41798 | I40: 103242.582 | N40: 0.7489548934 | O40: 5078.655108 | P40: 6972.31831
A41: Aug | B41: 37831 | C41: 0.029 | D41: 1097 | E41: 36734 | F41: 315.1249323 | G41: 116570 | H41: 18561.32689 | I41: 98008.67311 | N41: 0.7324985614 | O41: 5067.949035 | P41: 7248.297043
A42: Sep | B42: 36049 | C42: 0.0279 | D42: 1006 | E42: 35043 | F42: 296.3196824 | G42: 118261 | H42: 18940.09772 | I42: 99320.90228 | N42: 0.7423177384 | O42: 5102.962448 | P42: 6867.187513
A43: Oct | B43: 33630 | C43: 0.0302 | D43: 1016 | E43: 32614 | F43: 299.7869854 | G43: 108791 | H43: 19067.64016 | I43: 89723.35984 | N43: 0.748388325 | O43: 5095.654093 | P43: 6400.355951
A44: Nov | B44: 30360 | C44: 0.0321 | D44: 975 | E44: 29385 | F44: 289.0432147 | G44: 101663 | H44: 19363.90354 | I44: 82299.09646 | N44: 0.7622255198 | O44: 5080.885652 | P44: 5783.440529
A45: Dec | B45: 33419 | C45: 0.0446 | D45: 1490 | E45: 31929 | F45: 306.1533874 | G45: 104291 | H45: 19659.85841 | I45: 84631.14159 | N45: 0.760325127 | O45: 5171.434617 | P45: 6174.108804
A47: Total | B47: =SUM(B34:B45) -> 407090.5 | D47: =SUM(D34:D45) -> 15411 | E47: =SUM(E34:E45) -> 391679.5 | G47: =SUM(G34:G45) -> 1343041 | H47: =SUM(H34:H45) -> 238095.0341 | I47: =SUM(I34:I45) -> 1104945.966
D48: =ROUND(D47/B47,3) -> 0.038 | E48: =ROUND(E47/B47,3) -> 0.962
A50: Summer | B50: =SUM(B39:B42) -> 142811.5 | D50: =SUM(D39:D42) -> 4156 | E50: =SUM(E39:E42) -> 138655.5 | G50: =SUM(G39:G42) -> 468755 | H50: =SUM(H39:H42) -> 74965.73711 | I50: =SUM(I39:I42) -> 393789.2629
A51: Winter | B51: =SUM(B34:B38)+SUM(B43:B45) -> 264279 | D51: =SUM(D34:D38)+SUM(D43:D45) -> 11255 | E51: =SUM(E34:E38)+SUM(E43:E45) -> 253024 | G51: =SUM(G34:G38)+SUM(G43:G45) -> 874286 | H51: =SUM(H34:H38)+SUM(H43:H45) -> 163129.297 | I51: =SUM(I34:I38)+SUM(I43:I45) -> 711156.703
A53: Forecast Data - CIEP Figures
C55: Percent
B56: Total | C56: Non-Demand | D56: Non-Demand | E56: Demand | F56: Hours | H56: First | I56: Over 5
B57: MWh | C57: Metered | D57: Metered MWh | E57: Metered MWh | F57: Use | G57: kW | H57: 5 kW | I57: kW
A59: Jan | E59: 4589.327 | G59: =H59+I59 -> 10715.2 | H59: 102.5 | I59: 10612.7
A60: Feb | E60: 4476.752 | G60: =H60+I60 -> 11093.6 | H60: 102.5 | I60: 10991.1
A61: Mar | E61: 4139.4715 | G61: 10941.5 | H61: 102.5 | I61: 10839
A62: Apr | E62: 3950.455 | G62: 10454.8 | H62: 102.5 | I62: 10352.3
A63: May | E63: 4383.5095 | G63: 10946.7 | H63: 102.5 | I63: 10844.2
A64: Jun | E64: 5049.802 | G64: 12771.25 | H64: 102.5 | I64: 12668.75
A65: Jul | E65: 5295.773 | G65: 12834.75 | H65: 107.5 | I65: 12727.25
A66: Aug | E66: 5446.8815 | G66: 12738.55 | H66: 107.5 | I66: 12631.05
A67: Sep | E67: 5278.9205 | G67: 12554.6 | H67: 107.5 | I67: 12447.1
A68: Oct | E68: 4620.672 | G68: 11883.7 | H68: 107.5 | I68: 11776.2
A69: Nov | E69: 4458.4885 | G69: 11596.3 | H69: 112.5 | I69: 11483.8
A70: Dec | E70: 4399.9175 | G70: 11003.35 | H70: 102.5 | I70: 10900.85
A74: Forecast Data
C75: Percent | O75: Number of | P75: Average Use/
B76: Total | C76: Non-Demand | D76: Non-Demand | E76: Demand | F76: Hours | H76: First | I76: Over 5 | N76: % of 5kW | O76: Demand Billed | P76: Demand Billed
B77: MWh | C77: Metered | D77: Metered MWh | E77: Metered MWh | F77: Use | G77: kW | H77: 5 kW | I77: kW | N77: Per Cust | O77: Customers | P77: Customers
A79: Jan | B79: =B34-B59 -> 37514.5 | D79: =D34-D59 -> 1624 | E79: =E34-E59 -> 31301.173 | G79: =G34-G59 -> 85249.8 | H79: =H34-H59 -> 18053.59603 | I79: =I34-I59 -> 67196.20397 | N79: =N8 -> 0.7669702076 | O79: =E79/P79*1000 -> 4129.096917 | P79: =P8 -> 7580.634127
A80: Feb | B80: =B35-B60 -> 32174 | D80: =ROUND(B80*C9,0) -> 1786 | E80: =E35-E60 -> 25911.248 | G80: =G35-G60 -> 90300.4 | H80: 19485.6207 | I80: 70814.7793 | N80: =N9 -> 0.7656018536 | O80: =E80/P80*1000 -> 4363.208878 | P80: =P9 -> 5938.576109
A81: Mar | B81: 33355.5 | D81: 2145 | E81: 27071.0285 | G81: 132941.5 | H81: 26691.60891 | I81: 106249.8911 | N81: 0.7688116137 | O81: 6045.794883 | P81: 4477.662412
A82: Apr | B82: 33731.5 | D82: 1241 | E82: 28540.045 | G82: 103171.2 | H82: 21004.19564 | I82: 82167.00436 | N82: 0.754708573 | O82: 4913.254026 | P82: 5808.786774
A83: May | B83: 30094.5 | D83: 978 | E83: 24732.9905 | G83: 93726.3 | H83: 19290.37359 | I83: 74435.92641 | N83: 0.7606467525 | O83: 4331.383211 | P83: 5710.182936
A84: Jun | B84: 32415.5 | D84: 947 | E84: 26418.698 | G84: 98891.75 | H84: 18343.39453 | I84: 80548.35547 | N84: 0.7474409764 | O84: 4143.698822 | P84: 6375.631805
A85: Jul | B85: 36516 | D85: 1106 | E85: 30114.227 | G85: 109426.25 | H85: 18910.91798 | I85: 90515.33202 | N85: 0.7489548934 | O85: 4319.112476 | P85: 6972.31831
A86: Aug | B86: 37831 | D86: 1097 | E86: 31287.1185 | G86: 103831.45 | H86: 18453.82689 | I86: 85377.62311 | N86: 0.7324985614 | O86: 4316.478521 | P86: 7248.297043
A87: Sep | B87: 36049 | D87: 1006 | E87: 29764.0795 | G87: 105706.4 | H87: 18832.59772 | I87: 86873.80228 | N87: 0.7423177384 | O87: 4334.245926 | P87: 6867.187513
A88: Oct | B88: 33630 | D88: 1016 | E88: 27993.328 | G88: 96907.3 | H88: 18960.14016 | I88: 77947.15984 | N88: 0.748388325 | O88: 4373.714246 | P88: 6400.355951
A89: Nov | B89: 30360 | D89: 975 | E89: 24926.5115 | G89: 90066.7 | H89: 19251.40354 | I89: 70815.29646 | N89: 0.7622255198 | O89: 4309.979739 | P89: 5783.440529
A90: Dec | B90: 33419 | D90: 1490 | E90: 27529.0825 | G90: 93287.65 | H90: 19557.35841 | I90: 73730.29159 | N90: 0.760325127 | O90: 4458.79452 | P90: 6174.108804
A92: Total | B92: =SUM(B79:B90) -> 407090.5 | D92: =SUM(D79:D90) -> 15411 | E92: =SUM(E79:E90) -> 335589.53 | G92: =SUM(G79:G90) -> 1203506.7 | H92: =SUM(H79:H90) -> 236835.0341 | I92: =SUM(I79:I90) -> 966671.6659
D93: =ROUND(D92/B92,3) -> 0.038 | E93: =ROUND(E92/B92,3) -> 0.824
A95: Summer | B95: =SUM(B84:B87) -> 142811.5 | D95: =SUM(D84:D87) -> 4156 | E95: =SUM(E84:E87) -> 117584.123 | G95: =SUM(G84:G87) -> 417855.85 | H95: =SUM(H84:H87) -> 74540.73711 | I95: =SUM(I84:I87) -> 343315.1129
A96: Winter | B96: =SUM(B79:B83)+SUM(B88:B90) -> 264279 | D96: =SUM(D79:D83)+SUM(D88:D90) -> 11255 | E96: =SUM(E79:E83)+SUM(E88:E90) -> 218005.407 | G96: =SUM(G79:G83)+SUM(G88:G90) -> 785650.85 | H96: =SUM(H79:H83)+SUM(H88:H90) -> 162294.297 | I96: =SUM(I79:I83)+SUM(I88:I90) -> 623356.553
A100: SC1 Blocking Percentages (Rate Case Historical Billing Determinants)
C102: 2021-06-01 | D102: 2021-07-01 | E102: 2021-08-01 | F102: 2021-09-01 | G102: Total | H102: Percentages
A104: First 600 kWh | C104: 32851109 | D104: 35132633 | E104: 35541143 | F104: 34341562 | G104: =SUM(C104:F104) -> 137866447 | H104: =ROUND(G104/G106,4) -> 0.4297
A105: Over 600 kWh (incl WH) | C105: 33489610 | D105: 53006726 | E105: 55602055 | F105: 40847365 | G105: =SUM(C105:F105) -> 182945756 | H105: =ROUND(G105/G106,4) -> 0.5703
A106: Total | C106: =SUM(C104:C105) -> 66340719 | D106: 88139359 | E106: 91143198 | F106: 75188927 | G106: 320812203 | H106: 1
